Workbook

Sheet 曲管組合せ表
B7: 曲管組合せ表（ダクタイル管（T・K形管）、VP、VM、VU管に適用
B9: 適用範囲 | G9: 本数 | H9: 5ﾟ5/8 | I9: 11ﾟ1/4 | J9: 22ﾟ1/2 | K9: 45ﾟ | L9: 90ﾟ
B10: ° | C10: ’ | E10: ° | F10: ’
A11: 1 | B11: Henkaku=Cells(32, | C11: 0 | D11: ～ | E11: 8 | F11: 30 | G11: 1 | H11: 〇
A12: 2 | B12: 8 | C12: 30 | D12: ～ | E12: 14 | F12: 0 | G12: 1 | I12: 〇
A13: 3 | B13: 14 | C13: 0 | D13: ～ | E13: 19 | F13: 30 | G13: 2 | H13: 〇 | I13: 〇
A14: 4 | B14: 19 | C14: 30 | D14: ～ | E14: 25 | F14: 30 | G14: 1 | J14: 〇
A15: 5 | B15: 25 | C15: 30 | D15: ～ | E15: 31 | F15: 0 | G15: 2 | H15: 〇 | J15: 〇
A16: 6 | B16: 31 | C16: 0 | D16: ～ | E16: 36 | F16: 30 | G16: 2 | I16: 〇 | J16: 〇
A17: 7 | B17: 36 | C17: 30 | D17: ～ | E17: 42 | F17: 0 | G17: 3 | H17: 〇 | I17: 〇 | J17: 〇
A18: 8 | B18: 42 | C18: 0 | D18: ～ | E18: 48 | F18: 0 | G18: 1 | K18: 〇
A19: 9 | B19: 48 | C19: 0 | D19: ～ | E19: 53 | F19: 30 | G19: 2 | H19: 〇 | K19: 〇
A20: 10 | B20: 53 | C20: 30 | D20: ～ | E20: 59 | F20: 0 | G20: 2 | I20: 〇 | K20: 〇
A21: 11 | B21: 59 | C21: 0 | D21: ～ | E21: 64 | F21: 30 | G21: 3 | H21: 〇 | I21: 〇 | K21: 〇
A22: 12 | B22: 64 | C22: 30 | D22: ～ | E22: 70 | F22: 30 | G22: 2 | J22: 〇 | K22: 〇
A23: 13 | B23: 70 | C23: 30 | D23: ～ | E23: 76 | F23: 0 | G23: 3 | H23: 〇 | J23: 〇 | K23: 〇
A24: 14 | B24: 76 | C24: 0 | D24: ～ | E24: 81 | F24: 30 | G24: 3 | I24: 〇 | J24: 〇 | K24: 〇
A25: 15 | B25: 81 | C25: 30 | D25: ～ | E25: 87 | F25: 0 | G25: 4 | H25: 〇 | I25: 〇 | J25: 〇 | K25: 〇
A26: 16 | B26: 87 | C26: 0 | D26: ～ | E26: 93 | F26: 0 | G26: 1 | L26: 〇

Sheet 配管設計1
B2: VP管、DCIP管の組合せ曲管の寸法計算
B4: 平面偏角または縦断偏角の地点で曲管を2本以上使用した場合の各部寸法を計算する。
B5: 各部の寸法は図のとおりとする。
B6: 曲管の配置は上流側を受口としている。 | F6: データ入力のセルは | I6: の部分です。 | L6: は自動計算の結果です。
B7: 曲管の組合せ本数が2本の場合は、θ1、θ2までの入力、3本の場合はθ1～θ3までの入力、4本の場合はθ1～θ4までの入力
B8: となる。
K13: β1=θ1+θ2
K15: γ=180-β1
K17: α=180-（γ+θ1）
K18: =180-（180-β1+θ1）
K19: =β1-θ1
K20: =θ1+θ2-θ1
K21: =θ2
K24: β2=β1+θ3
K26: β3=β2+θ4
R28: =665+1607.9 -> 2272.9
C32: 偏角 | D32: 84.375 | E32: (deg) | F32: 管種 | G32: DCIP | I32: VP | P32: DCIP
C33: 口径 | D33: 300 | E33: 曲管の組合せ方法 | G33: 自動 | I33: 口径 | J33: 番号 | K33: 曲管の組合せ | O33: 合計
C34: θ1 | D34: θ2 | E34: θ3 | F34: θ4 | K34: 角度 | L34: La | M34: 角度 | N34: Lb | O34: La+Lb
C35: (deg) | D35: (deg) | E35: (deg) | F35: (deg) | L35: （mm) | N35: (mm) | O35: (mm)
C36: 45 | D36: 22.5 | E36: 11.25 | F36: 5.625 | I36: φ50 | J36: 1 | K36: 45° | L36: 255 | M36: 22°1/2 | N36: 190 | O36: =L36+N36 -> 445
C37: β1 | D37: β2 | E37: β3 | J37: 2 | K37: 45° | L37: 255 | M37: 11°1/4 | N37: 175 | O37: =L37+N37 -> 430
C38: (deg) | D38: (deg) | E38: (deg) | J38: 3 | K38: 45° | L38: 255 | M38: 5°5/8 | N38: 165 | O38: 420
C39: =C36+D36 -> 67.5 | D39: =C39+E36 -> 78.75 | E39: =D39+F36 -> 84.375 | J39: 4 | K39: 22°1/2 | L39: 223 | M39: 11°1/4 | N39: 175 | O39: 398
C40: L1 | D40: L2 | E40: L3 | J40: 5 | K40: 22°1/2 | L40: 223 | M40: 5°5/8 | N40: 165 | O40: 388
C41: (mm) | D41: (mm) | E41: (mm) | J41: 6 | K41: 11°1/4 | L41: 208 | M41: 5°5/8 | N41: 165 | O41: 373
C42: 815 | D42: 870 | E42: 1082 | I42: φ75 | J42: 1 | K42: 45° | L42: 195 | M42: 22°1/2 | N42: 225 | O42: 420
C43: A1 | D43: A2 | E43: A3 | J43: 2 | K43: 45° | L43: 195 | M43: 11°1/4 | N43: 200 | O43: 395
C44: (mm) | D44: (mm) | E44: (mm) | J44: 3 | K44: 45° | L44: 195 | M44: 5°5/8 | N44: 185 | O44: 380
C45: 337.5794067 | D45: 297.1296082 | E45: 245.151886 | J45: 4 | K45: 22°1/2 | L45: 141 | M45: 11°1/4 | N45: 200 | O45: 341
C46: B1 | D46: B2 | E46: B3 | J46: 5 | K46: 22°1/2 | L46: 141 | M46: 5°5/8 | N46: 185 | O46: 326
C47: (mm) | D47: (mm) | E47: (mm) | J47: 6 | K47: 11°1/4 | L47: 116 | M47: 5°5/8 | N47: 185 | O47: 301
C48: 623.7775269 | D48: 1407.108276 | E48: 2453.093994 | I48: φ100 | J48: 1 | K48: 45° | L48: 212 | M48: 22°1/2 | N48: 250 | O48: 462
J49: 2 | K49: 45° | L49: 212 | M49: 11°1/4 | N49: 220 | O49: 432
J50: 3 | K50: 45° | L50: 212 | M50: 5°5/8 | N50: 205 | O50: 417
J51: 4 | K51: 22°1/2 | L51: 148 | M51: 11°1/4 | N51: 220 | O51: 368
J52: 5 | K52: 22°1/2 | L52: 148 | M52: 5°5/8 | N52: 205 | O52: 353
J53: 6 | K53: 11°1/4 | L53: 118 | M53: 5°5/8 | N53: 205 | O53: 323
I54: φ125 | J54: 1 | K54: 45° | L54: 260 | M54: 22°1/2 | N54: 235 | O54: 495
J55: 2 | K55: 45° | L55: 260 | M55: 11°1/4 | N55: 245 | O55: 505
J56: 3 | K56: 45° | L56: 260 | M56: 5°5/8 | N56: 225 | O56: 485
J57: 4 | K57: 22°1/2 | L57: 174 | M57: 11°1/4 | N57: 245 | O57: 419
J58: 5 | K58: 22°1/2 | L58: 174 | M58: 5°5/8 | N58: 225 | O58: 399
J59: 6 | K59: 11°1/4 | L59: 133 | M59: 5°5/8 | N59: 225 | O59: 358
I60: φ150 | J60: 1 | K60: 45° | L60: 299 | M60: 22°1/2 | N60: 315 | O60: 614
J61: 2 | K61: 45° | L61: 299 | M61: 11°1/4 | N61: 270 | O61: 569
J62: 3 | K62: 45° | L62: 299 | M62: 5°5/8 | N62: 245 | O62: 544
J63: 4 | K63: 22°1/2 | L63: 203 | M63: 11°1/4 | N63: 270 | O63: 473
J64: 5 | K64: 22°1/2 | L64: 203 | M64: 5°5/8 | N64: 245 | O64: 448
J65: 6 | K65: 11°1/4 | L65: 157 | M65: 5°5/8 | N65: 245 | O65: 402
I66: φ200 | J66: 1 | K66: 45° | L66: 366 | M66: 22°1/2 | N66: 380 | O66: 746
J67: 2 | K67: 45° | L67: 366 | M67: 11°1/4 | N67: 320 | O67: 686
J68: 3 | K68: 45° | L68: 366 | M68: 5°5/8 | N68: 290 | O68: 656
J69: 4 | K69: 22°1/2 | L69: 296 | M69: 11°1/4 | N69: 320 | O69: 616
J70: 5 | K70: 22°1/2 | L70: 296 | M70: 5°5/8 | N70: 290 | O70: 586
J71: 6 | K71: 11°1/4 | L71: 236 | M71: 5°5/8 | N71: 290 | O71: 526
I72: φ250 | J72: 1 | K72: 45° | L72: 425 | M72: 22°1/2 | N72: 430 | O72: 855
J73: 2 | K73: 45° | L73: 425 | M73: 11°1/4 | N73: 360 | O73: 785
J74: 3 | K74: 45° | L74: 425 | M74: 5°5/8 | N74: 325 | O74: 750
J75: 4 | K75: 22°1/2 | L75: 345 | M75: 11°1/4 | N75: 360 | O75: 705
J76: 5 | K76: 22°1/2 | L76: 345 | M76: 5°5/8 | N76: 325 | O76: 670
J77: 6 | K77: 11°1/4 | L77: 275 | M77: 5°5/8 | N77: 325 | O77: 600
I78: φ300 | J78: 1 | K78: 45° | L78: 505 | M78: 22°1/2 | N78: 480 | O78: 985
J79: 2 | K79: 45° | L79: 505 | M79: 11°1/4 | N79: 395 | O79: 900
J80: 3 | K80: 45° | L80: 505 | M80: 5°5/8 | N80: 350 | O80: 855
J81: 4 | K81: 22°1/2 | L81: 405 | M81: 11°1/4 | N81: 395 | O81: 800
J82: 5 | K82: 22°1/2 | L82: 405 | M82: 5°5/8 | N82: 350 | O82: 755
J83: 6 | K83: 11°1/4 | L83: 315 | M83: 5°5/8 | N83: 350 | O83: 665

Sheet VP曲管データ
C4: ”クボタビニルパイプ設計施工ハンドブック<上水道編>改訂3版 昭和59年10月30日 第16刷”により作成
B6: Dat(I,K,1) | C6: Dat(I,K,2) | D6: Dat(I,K,3) | E6: Dat(I,K,4) | F6: Dat(I,K,5) | G6: Dat(I,K,6) | H6: Dat(I,K,7) | I6: Dat(I,K,8) | J6: Dat(I,K,9) | K6: Dat(I,K,10) | L6: Dat(I,K,11) | M6: Dat(I,K,12) | N6: Dat(I,K,13) | O6: Dat(I,K,14)
A7: 1 | B7: 90°
A8: 2 | B8: 口径 | C8: 外径 | D8: 管厚 | E8: 受口長 | F8: 質量 | G8: 管心長 | H8: Z1 | I8: Z2 | J8: F1 | K8: F2 | L8: R | M8: TL | N8: A=F2-TL | O8: B=F1-受口
A9: 3 | B9: (mm) | C9: (mm) | D9: (mm) | F9: (kg) | G9: (mm) | H9: (mm) | I9: (mm) | J9: (mm) | K9: (mm) | L9: (mm) | M9: (mm) | N9: (mm) | O9: (mm)
A10: 4 | B10: 13 | C10: =13+2.2*2 -> 17.4
A11: 5 | B11: 16 | C11: =16+2.7*2 -> 21.4
A12: 6 | B12: 20 | C12: =20+2.7*2 -> 25.4
A13: 7 | B13: 25 | C13: =25+2*3.1 -> 31.2
A14: 8 | B14: 30 | C14: =31+2*3.1 -> 37.2
A15: 9 | B15: 40 | C15: =40+2*3.6 -> 47.2
A16: 10 | B16: 50 | C16: =51+2*4.1 -> 59.2 | D16: 4.1 | G16: =(J16-K16)+(I16-K16)+PI()*2*K16/4 -> 409.9468613 | H16: 335 | I16: 200 | J16: 343 | K16: 310 | L16: 150 | M16: =L16*TAN(90/2*PI()/180) -> 150 | N16: =I16-M16 -> 50 | O16: =J16-E16 -> 343
A17: 11 | B17: 65 | C17: =67+2*4.1 -> 75.2
A18: 12 | B18: 75 | C18: =77+2*5.5 -> 88 | D18: 5.5 | E18: =285-165 -> 120 | G18: =(J18-K18)+(I18-K18)+PI()*2*K18/4 -> 583.5884389 | H18: 450 | I18: 305 | J18: 461 | K18: 425 | L18: 250 | M18: =L18*TAN(90/2*PI()/180) -> 250 | N18: =I18-M18 -> 55 | O18: =J18-E18 -> 341
A19: 13 | B19: 100 | C19: =100+2*6.6 -> 113.2 | D19: 6.6 | E19: =305-175 -> 130 | G19: 667.6902001 | H19: 505 | I19: 360 | J19: 518 | K19: 490 | L19: 300 | M19: 300 | N19: 60 | O19: 388
A20: 14 | B20: 125 | C20: =125+2*7 -> 139 | D20: 7 | E20: =335-200 -> 135 | G20: 839.3317777 | H20: 615 | I20: 470 | J20: 629 | K20: 605 | L20: 400 | M20: 400 | N20: 70 | O20: 494
A21: 15 | B21: 150 | C21: =146+2*8.9 -> 163.8 | D21: 8.9 | E21: =375-230 -> 145 | G21: 948.2875206 | H21: 690 | I21: 530 | J21: 708 | K21: 675 | L21: 450 | M21: 450 | N21: 80 | O21: 563
A22: 16 | B22: 200 | C22: =194+2*10.3 -> 214.6 | D22: 10.3 | E22: =415-245 -> 170 | G22: 1206.884841 | H22: 865 | I22: 690 | J22: 886 | K22: 860 | L22: 600 | M22: 600 | N22: 90 | O22: 716
A23: 17 | B23: 250 | C23: =240+2*12.7 -> 265.4 | D23: 12.7 | E23: =475-290 -> 185 | G23: 1400.088364 | H23: 995 | I23: 805 | J23: 1020 | K23: 990 | L23: 700 | M23: 700 | N23: 105 | O23: 835
A24: 18 | B24: 300 | C24: =286+2*15.1 -> 316.2 | D24: 15.1 | E24: =535-335 -> 200 | G24: 1667.123739 | H24: 1175 | I24: 960 | J24: 1205 | K24: 1160 | L24: 850 | M24: 850 | N24: 110 | O24: 1005
A25: 1 | B25: 45°
A26: 2 | B26: 口径 | C26: 外径 | D26: 管厚 | E26: 受口長 | F26: 質量 | G26: 管心長 | H26: Z1 | I26: Z2 | J26: F1 | K26: F2 | L26: R | M26: TL | N26: A=F2-TL | O26: B=F1-受口
A27: 3 | B27: (mm) | C27: (mm) | D27: (mm) | F27: (kg) | G27: (mm) | H27: (mm) | I27: (mm) | J27: (mm) | K27: (mm) | L27: (mm) | M27: (mm) | N27: (mm) | O27: (mm)
A28: 4 | B28: 13 | C28: =13+2.2*2 -> 17.4
A29: 5 | B29: 16 | C29: =16+2.7*2 -> 21.4
A30: 6 | B30: 20 | C30: =20+2.7*2 -> 25.4
A31: 7 | B31: 25 | C31: =25+2*3.1 -> 31.2
A32: 8 | B32: 30 | C32: =31+2*3.1 -> 37.2
A33: 9 | B33: 40 | C33: =40+2*3.6 -> 47.2
A34: 10 | B34: 50 | C34: =51+2*4.1 -> 59.2 | D34: 4.1 | E34: 110 | F34: =(I34-J34)+(H34-J34)+PI()*2*J34/4 -> 247.5530633 | G34: =(J34-K34)+(I34-K34)+PI()*2*K34/4 -> 270.5751919 | H34: 247 | I34: 110 | J34: 255 | K34: 220 | L34: 150 | M34: =L34*TAN(45/2*PI()/180) -> 62.13203436 | N34: =I34-M34 -> 47.86796564 | O34: =J34-E34 -> 145
A35: 11 | B35: 65 | C35: =67+2*4.1 -> 75.2
A36: 12 | B36: 75 | C36: =77+2*5.5 -> 88 | D36: 5.5 | E36: =285-165 -> 120 | F36: =(I36-J36)+(H36-J36)+PI()*2*J36/4 -> 328.8008429 | G36: 354.8229715 | H36: 304 | I36: 160 | J36: 315 | K36: 280 | L36: 250 | M36: =L36*TAN(45/2*PI()/180) -> 103.5533906 | N36: =I36-M36 -> 56.44660941 | O36: =J36-E36 -> 195
A37: 13 | B37: 100 | C37: =100+2*6.6 -> 113.2 | D37: 6.6 | E37: =305-175 -> 130 | F37: 367.2123438 | G37: 391.8008429 | H37: 329 | I37: 185 | J37: 342 | K37: 315 | L37: 300 | M37: 124.2640687 | N37: 60.73593129 | O37: 212
A38: 14 | B38: 125 | C38: =125+2*7 -> 139 | D38: 7 | E38: =335-200 -> 135 | F38: 446.4645491 | G38: 471.1946409 | H38: 381 | I38: 235 | J38: 395 | K38: 370 | L38: 400 | M38: 165.6854249 | N38: 69.31457505 | O38: 260
A39: 15 | B39: 150 | C39: =146+2*8.9 -> 163.8 | D39: 8.9 | E39: =375-230 -> 145 | F39: 500.4335691 | G39: 533.026494 | H39: 426 | I39: 265 | J39: 444 | K39: 410 | L39: 450 | M39: 186.3961031 | N39: 78.60389693 | O39: 299
A40: 16 | B40: 200 | C40: =194+2*10.3 -> 214.6 | D40: 10.3 | E40: =415-245 -> 170 | F40: 624.9468312 | G40: 657.1061267 | H40: 515 | I40: 340 | J40: 536 | K40: 510 | L40: 600 | M40: 248.5281374 | N40: 91.47186258 | O40: 366
A41: 17 | B41: 250 | C41: =240+2*12.7 -> 265.4 | D41: 12.7 | E41: =475-290 -> 185 | F41: 718.1857593 | G41: 756.0618695 | H41: 585 | I41: 395 | J41: 610 | K41: 580 | L41: 700 | M41: 289.9494937 | N41: 105.0505063 | O41: 425
A42: 18 | B42: 300 | C42: =286+2*15.1 -> 316.2 | D42: 15.1 | E42: 200 | F42: 832.4114104 | G42: 881.7255757 | H42: 675 | I42: 460 | J42: 705 | K42: 660 | L42: 850 | M42: 352.081528 | N42: 107.918472 | O42: =J42-E42 -> 505
A43: 1 | B43: 22°1/2
A44: 2 | B44: 口径 | C44: 外径 | D44: 管厚 | E44: 受口長 | F44: 質量 | G44: 管心長 | H44: Z1 | I44: Z2 | J44: F1 | K44: F2 | L44: R | M44: TL | N44: A=F2-TL | O44: B=F1-受口
A45: 3 | B45: (mm) | C45: 215.3872528 | D45: 308.0947266 | E45: 209.6867523 | F45: (kg) | G45: (mm) | H45: (mm) | I45: (mm) | J45: (mm) | K45: (mm) | L45: (mm) | M45: (mm) | N45: (mm) | O45: (mm)
A46: 4 | B46: 13 | C46: =13+2.2*2 -> 17.4
A47: 5 | B47: 16 | C47: =16+2.7*2 -> 21.4
A48: 6 | B48: 20 | C48: 753.880127 | D48: 1459.011963 | E48: 2098.20752
A49: 7 | B49: 25 | C49: =25+2*3.1 -> 31.2
A50: 8 | B50: 30 | C50: =31+2*3.1 -> 37.2
A51: 9 | B51: 40 | C51: =40+2*3.6 -> 47.2
A52: 10 | B52: 50 | C52: =51+2*4.1 -> 59.2 | D52: 4.1 | G52: =(J52-K52)+(I52-K52)+PI()*2*K52/4 -> 221.4513021 | H52: 215 | I52: 80 | J52: 223 | K52: 190 | L52: 150 | M52: =L52*TAN(22.5/2*PI()/180) -> 29.83685511 | N52: =I52-M52 -> 50.16314489 | O52: =J52-E52 -> 223
A53: 11 | B53: 65 | C53: =67+2*4.1 -> 75.2
A54: 12 | B54: 75 | C54: =77+2*5.5 -> 88 | D54: 5.5 | E54: =285-165 -> 120 | G54: =(J54-K54)+(I54-K54)+PI()*2*K54/4 -> 269.4291735 | H54: 250 | I54: 105 | J54: 261 | K54: 225 | L54: 250 | M54: =L54*TAN(22.5/2*PI()/180) -> 49.72809184 | N54: =I54-M54 -> 55.27190816 | O54: =J54-E54 -> 141
A55: 13 | B55: 100 | C55: =100+2*6.6 -> 113.2 | D55: 6.6 | E55: =305-175 -> 130 | G55: 290.6990817 | H55: 265 | I55: 120 | J55: 278 | K55: 250 | L55: 300 | M55: 59.67371021 | N55: 60.32628979 | O55: 148
A56: 14 | B56: 125 | C56: =125+2*7 -> 139 | D56: 7 | E56: =335-200 -> 135 | G56: 358.1371368 | H56: 295 | I56: 150 | J56: 309 | K56: 235 | L56: 400 | M56: 79.56494695 | N56: 70.43505305 | O56: 174
A57: 15 | B57: 150 | C57: =146+2*8.9 -> 163.8 | D57: 8.9 | E57: =375-230 -> 145 | G57: 382.8008429 | H57: 330 | I57: 170 | J57: 348 | K57: 315 | L57: 450 | M57: 89.51056532 | N57: 80.48943468 | O57: 203
A58: 16 | B58: 200 | C58: =194+2*10.3 -> 214.6 | D58: 10.3 | E58: =415-245 -> 170 | G58: 512.9026042 | H58: 445 | I58: 210 | J58: 466 | K58: 380 | L58: 600 | M58: 119.3474204 | N58: 90.65257957 | O58: 296
A59: 17 | B59: 250 | C59: =240+2*12.7 -> 265.4 | D59: 12.7 | E59: =475-290 -> 185 | G59: 590.4424205 | H59: 505 | I59: 245 | J59: 530 | K59: 430 | L59: 700 | M59: 139.2386572 | N59: 105.7613428 | O59: 345
A60: 18 | B60: 300 | C60: =286+2*15.1 -> 316.2 | D60: 15.1 | E60: =535-335 -> 200 | G60: 678.9822369 | H60: 575 | I60: 280 | J60: 605 | K60: 480 | L60: 850 | M60: 169.0755123 | N60: 110.9244877 | O60: 405
A61: 1 | B61: 11°1/4 | N61: A | O61: B
A62: 2 | B62: 口径 | C62: 外径 | D62: 管厚 | E62: 受口長 | F62: 質量 | G62: 管心長 | H62: Z1 | I62: Z2 | J62: F1 | K62: F2 | L62: R | M62: TL | N62: A=F2-TL | O62: B=F1-受口
A63: 3 | B63: (mm) | C63: (mm) | D63: (mm) | F63: (kg) | G63: (mm) | H63: (mm) | I63: (mm) | J63: (mm) | K63: (mm) | L63: (mm) | M63: (mm) | N63: (mm) | O63: (mm)
A64: 4 | B64: 13 | C64: =13+2.2*2 -> 17.4
A65: 5 | B65: 16 | C65: =16+2.7*2 -> 21.4
A66: 6 | B66: 20 | C66: =20+2.7*2 -> 25.4
A67: 7 | B67: 25 | C67: =25+2*3.1 -> 31.2
A68: 8 | B68: 30 | C68: =31+2*3.1 -> 37.2
A69: 9 | B69: 40 | C69: =40+2*3.6 -> 47.2
A70: 10 | B70: 50 | C70: =51+2*4.1 -> 59.2 | D70: 4.1 | G70: =(J70-K70)+(I70-K70)+PI()*2*K70/4 -> 197.8893572 | H70: 200 | I70: 65 | J70: 208 | K70: 175 | L70: 150 | M70: =L70*TAN(11.25/2*PI()/180) -> 14.7737105 | N70: =I70-M70 -> 50.2262895 | O70: =J70-E70 -> 208
A71: 11 | B71: 65 | C71: =67+2*4.1 -> 75.2
A72: 12 | B72: 75 | C72: =77+2*5.5 -> 88 | D72: 5.5 | E72: =285-165 -> 120 | G72: =(J72-K72)+(I72-K72)+PI()*2*K72/4 -> 230.1592654 | H72: 225 | I72: 80 | J72: 236 | K72: 200 | L72: 250 | M72: =L72*TAN(11.25/2*PI()/180) -> 24.62285084 | N72: =I72-M72 -> 55.37714916 | O72: =J72-E72 -> 116
A73: 13 | B73: 100 | C73: =100+2*6.6 -> 113.2 | D73: 6.6 | E73: =305-175 -> 130 | G73: 243.5751919 | H73: 235 | I73: 90 | J73: 248 | K73: 220 | L73: 300 | M73: 29.54742101 | N73: 60.45257899 | O73: 118
A74: 14 | B74: 125 | C74: =125+2*7 -> 139 | D74: 7 | E74: =335-200 -> 135 | G74: 272.8451001 | H74: 254 | I74: 110 | J74: 268 | K74: 245 | L74: 400 | M74: 39.39656134 | N74: 70.60343866 | O74: 133
A75: 15 | B75: 150 | C75: =146+2*8.9 -> 163.8 | D75: 8.9 | E75: =375-230 -> 145 | G75: 311.1150082 | H75: 284 | I75: 125 | J75: 302 | K75: 270 | L75: 450 | M75: 44.32113151 | N75: 80.67886849 | O75: 157
A76: 16 | B76: 200 | C76: =194+2*10.3 -> 214.6 | D76: 10.3 | E76: =415-245 -> 170 | G76: 418.6548246 | H76: 365 | I76: 150 | J76: 406 | K76: 320 | L76: 600 | M76: 59.09484201 | N76: 90.90515799 | O76: 236
A77: 17 | B77: 250 | C77: =240+2*12.7 -> 265.4 | D77: 12.7 | E77: =475-290 -> 185 | G77: 480.4866776 | H77: 435 | I77: 175 | J77: 460 | K77: 360 | L77: 700 | M77: 68.94398235 | N77: 106.0560176 | O77: 275
A78: 18 | B78: 300 | C78: =286+2*15.1 -> 316.2 | D78: 15.1 | E78: =535-335 -> 200 | G78: 540.4645491 | H78: 485 | I78: 195 | J78: 515 | K78: 395 | L78: 850 | M78: 83.71769285 | N78: 111.2823071 | O78: 315
A79: 1 | B79: 5°5/8
A80: 2 | B80: 口径 | C80: 外径 | D80: 管厚 | E80: 受口長 | F80: 質量 | G80: 管心長 | H80: Z1 | I80: Z2 | J80: F1 | K80: F2 | L80: R | M80: TL | N80: A=F2-TL | O80: B=F1-受口
A81: 3 | B81: (mm) | C81: (mm) | D81: (mm) | F81: (kg) | G81: (mm) | H81: (mm) | I81: (mm) | J81: (mm) | K81: (mm) | L81: (mm) | M81: (mm) | N81: (mm) | O81: (mm)
A82: 4 | B82: 13 | C82: =13+2.2*2 -> 17.4
A83: 5 | B83: 16 | C83: =16+2.7*2 -> 21.4
A84: 6 | B84: 20 | C84: =20+2.7*2 -> 25.4
A85: 7 | B85: 25 | C85: =25+2*3.1 -> 31.2
A86: 8 | B86: 30 | C86: =31+2*3.1 -> 37.2
A87: 9 | B87: 40 | C87: =40+2*3.6 -> 47.2
A88: 10 | B88: 50 | C88: =51+2*4.1 -> 59.2 | D88: 4.1 | G88: =(J88-K88)+(I88-K88)+PI()*2*K88/4 -> 184.1813939 | H88: 192 | I88: 55 | J88: 200 | K88: 165 | L88: 150 | M88: =L88*TAN(5.625/2*PI()/180) -> 7.369027465 | N88: =I88-M88 -> 47.63097253 | O88: =J88-E88 -> 200
A89: 11 | B89: 65 | C89: =67+2*4.1 -> 75.2
A90: 12 | B90: 75 | C90: =77+2*5.5 -> 88 | D90: 5.5 | E90: =285-165 -> 120 | G90: =(J90-K90)+(I90-K90)+PI()*2*K90/4 -> 208.5973205 | H90: 212 | I90: 65 | J90: 223 | K90: 185 | L90: 250 | M90: =L90*TAN(5.625/2*PI()/180) -> 12.28171244 | N90: =I90-M90 -> 52.71828756 | O90: =J90-E90 -> 103
A91: 13 | B91: 100 | C91: =100+2*6.6 -> 113.2 | D91: 6.6 | E91: =305-175 -> 130 | G91: 220.013247 | H91: 220 | I91: 75 | J91: 233 | K91: 205 | L91: 300 | M91: 14.73805493 | N91: 60.26194507 | O91: 103
A92: 14 | B92: 125 | C92: =125+2*7 -> 139 | D92: 7 | E92: =335-200 -> 135 | G92: 242.4291735 | H92: 235 | I92: 90 | J92: 249 | K92: 225 | L92: 400 | M92: 19.65073991 | N92: 70.34926009 | O92: 114
A93: 15 | B93: 150 | C93: =146+2*8.9 -> 163.8 | D93: 8.9 | E93: =375-230 -> 145 | G93: 274.8451001 | H93: 262 | I93: 100 | J93: 280 | K93: 245 | L93: 450 | M93: 22.1070824 | N93: 77.8929176 | O93: 135
A94: 16 | B94: 200 | C94: =194+2*10.3 -> 214.6 | D94: 10.3 | E94: =415-245 -> 170 | G94: 371.5309348 | H94: 355 | I94: 120 | J94: 376 | K94: 290 | L94: 600 | M94: 29.47610986 | N94: 90.52389014 | O94: 206
A95: 17 | B95: 250 | C95: =240+2*12.7 -> 265.4 | D95: 12.7 | E95: =475-290 -> 185 | G95: 425.5088062 | H95: 400 | I95: 140 | J95: 425 | K95: 325 | L95: 700 | M95: 34.38879484 | N95: 105.6112052 | O95: 240
A96: 18 | B96: 300 | C96: =286+2*15.1 -> 316.2 | D96: 15.1 | E96: =535-335 -> 200 | G96: 474.7787144 | H96: 445 | I96: 150 | J96: 475 | K96: 350 | L96: 850 | M96: 41.7578223 | N96: 108.2421777 | O96: 275

Sheet DCIP曲管データ
C4: ダクタイル管（K形管） | E4: ”農業用水用ダクタイル鉄管便覧 日本ダクタイル鉄管協会”(平成6年3月31日発行）により作成
B6: Dat(I,K,1) | C6: Dat(I,K,2) | D6: Dat(I,K,3) | E6: Dat(I,K,4) | F6: Dat(I,K,5) | G6: Dat(I,K,6) | H6: Dat(I,K,7) | I6: Dat(I,K,8) | J6: Dat(I,K,9) | K6: Dat(I,K,10) | L6: Dat(I,K,11) | M6: Dat(I,K,12)
A7: 1 | B7: 90°
A8: 2 | B8: 口径 | C8: 外径 | D8: 管厚 | E8: 受口長(P) | F8: 質量 | G8: 管心長 | H8: R | I8: L1 | J8: L2 | K8: TL | L8: A=L1+P | M8: B=L2-受口
A9: 3 | B9: (mm) | C9: (mm) | D9: (mm) | E9: (mm) | F9: (kg) | G9: (mm) | H9: (mm) | I9: (mm) | J9: (mm) | K9: (mm) | L9: (mm) | M9: (mm)
A10: 4 | B10: 75 | C10: 93 | D10: 8.5 | E10: 80 | F10: 14.5 | G10: 584 | H10: 250 | I10: 292 | J10: 400 | K10: 250 | L10: =E10+I10 -> 372 | M10: =J10-E10 -> 320
A11: 5 | B11: 100 | C11: 118 | D11: 8.5 | E11: 80 | F11: 18.8 | G11: 584 | H11: 250 | I11: 292 | J11: 400 | K11: 250 | L11: =E11+I11 -> 372 | M11: =J11-E11 -> 320
A12: 6 | B12: 150 | C12: 169 | D12: 9 | E12: 80 | F12: 32.5 | G12: 713 | H12: 300 | I12: 342 | J12: 500 | K12: 300 | L12: 422 | M12: 420
A13: 7 | B13: 200 | C13: 220 | D13: 11 | E13: 80 | F13: 57.1 | G13: 872 | H13: 400 | I13: 443 | J13: 600 | K13: 400 | L13: 523 | M13: 520
A14: 8 | B14: 250 | C14: 271.6 | D14: 12 | E14: 80 | F14: 79.7 | G14: 923 | H14: 400 | I14: 445 | J14: 650 | K14: 400 | L14: 525 | M14: 570
A15: 9 | B15: 300 | C15: 322.8 | D15: 12.5 | E15: 110 | F15: 125 | G15: 1161 | H15: 550 | I15: 597 | J15: 800 | K15: 550 | L15: 707 | M15: 690
A16: 10 | B16: 350 | C16: 374 | D16: 13 | E16: 110 | F16: 151 | G16: 1162 | H16: 550 | I16: 598 | J16: 800 | K16: 550 | L16: 708 | M16: 690
A17: 11 | B17: 400 | C17: 425.6 | D17: 14 | E17: 110 | F17: 195 | G17: 1243 | H17: 600 | I17: 650 | J17: 850 | K17: 600 | L17: 760 | M17: 740
A18: 12 | B18: 450 | C18: 476.8 | D18: 14.5 | E18: 110 | F18: 228 | G18: 1244 | H18: 600 | I18: 652 | J18: 850 | K18: 600 | L18: 762 | M18: 740
A19: 13 | B19: 500 | C19: 528 | D19: 15 | E19: 110 | F19: 289 | G19: 1403 | H19: 700 | I19: 754 | J19: 950 | K19: 700 | L19: 864 | M19: 840
A20: 14 | B20: 600 | C20: 630.8 | D20: 16 | E20: 110 | F20: 414 | G20: 1612 | H20: 800 | I20: 855 | J20: 1100 | K20: 800 | L20: 965 | M20: 990
A21: 15 | B21: 700 | C21: 733 | D21: 17 | E21: 120 | F21: 560 | G21: 1771 | H21: 900 | I21: 957 | J21: 1200 | K21: 900 | L21: 1077 | M21: 1080
A22: 16 | B22: 800 | C22: 836 | D22: 18 | E22: 120 | F22: 731 | G22: 1931 | H22: 1000 | I22: 1061 | J22: 1300 | K22: 1000 | L22: 1181 | M22: 1180
A23: 17 | B23: 900 | C23: 939 | D23: 19 | E23: 120 | F23: 934 | G23: 2092 | H23: 1100 | I23: 1164 | J23: 1400 | K23: 1100 | L23: 1284 | M23: 1280
A24: 18 | B24: 1000 | C24: 1041 | D24: 20 | E24: 130 | F24: 1140 | G24: 2174 | H24: 1150 | I24: 1218 | J24: 1450 | K24: 1150 | L24: 1348 | M24: 1320
A25: 19 | B25: 1100 | C25: 1144 | D25: 21 | E25: 130 | F25: 1360 | G25: 2254 | H25: 1200 | I25: 1269 | J25: 1500 | K25: 1200 | L25: 1399 | M25: 1370
A26: 20 | B26: 1200 | C26: 1246 | D26: 22 | E26: 130 | F26: 1550 | G26: 2256 | H26: 1200 | I26: 1271 | J26: 1500 | K26: 1200 | L26: 1401 | M26: 1370
A27: 21 | B27: 1350 | C27: 1400 | D27: 24 | E27: 130 | F27: 1910 | G27: 2259 | H27: 1200 | I27: 1274 | J27: 1500 | K27: 1200 | L27: 1404 | M27: 1370
A28: 22 | B28: 1500 | C28: 1554 | D28: 26 | E28: 130 | F28: 2300 | G28: 2263 | H28: 1200 | I28: 1278 | J28: 1500 | K28: 1200 | L28: 1408 | M28: 1370
A29: 23 | B29: 1600 | C29: 1650 | D29: 27.5 | E29: 160 | F29: 2650 | G29: 2313 | H29: 1200 | I29: 1278 | J29: 1550 | K29: 1200 | L29: 1438 | M29: 1390
A30: 24 | B30: 1650 | C30: 1701 | D30: 28 | E30: 165 | F30: 2800 | G30: 2315 | H30: 1200 | I30: 1280 | J30: 1550 | K30: 1200 | L30: 1445 | M30: 1385
A31: 25 | B31: 1800 | C31: 1848 | D31: 30 | E31: 170 | F31: 3370 | G31: 2399 | H31: 1250 | I31: 1335 | J31: 1600 | K31: 1250 | L31: 1505 | M31: 1430
A32: 26 | B32: 2000 | C32: 2061 | D32: 32 | E32: 180
A33: 27 | B33: 2100 | C33: 2164 | D33: 33 | E33: 185
A34: 28 | B34: 2200 | C34: 2280 | D34: 34 | E34: 190
A35: 29 | B35: 2400 | C35: 2458 | D35: 36 | E35: 200
A36: 30 | B36: 2600 | C36: 2684 | D36: 37.5 | E36: 230
A37: 1 | B37: 45°
A38: 2 | B38: 口径 | C38: 外径 | D38: 管厚 | E38: 受口長(P) | F38: 質量 | G38: 管心長 | H38: R | I38: L1 | J38: L2 | K38: TL | L38: A=L1+P | M38: B=L2-受口
A39: 3 | B39: (mm) | C39: (mm) | D39: (mm) | E39: (mm) | F39: (kg) | G39: (mm) | H39: (mm) | I39: (mm) | J39: (mm) | K39: (mm) | L39: (mm) | M39: (mm)
A40: 4 | B40: 75 | C40: 93 | D40: 8.5 | E40: 80 | F40: 13.2 | G40: 506 | H40: 400 | I40: 207 | J40: 316 | K40: =TAN(45/2*PI()/180)*H40 -> 165.6854249 | L40: =E40+I40 -> 287 | M40: =J40-E40 -> 236
A41: 5 | B41: 100 | C41: 118 | D41: 8.5 | E41: 80 | F41: 17.1 | G41: 506 | H41: 400 | I41: 207 | J41: 316 | K41: =TAN(45/2*PI()/180)*H41 -> 165.6854249 | L41: 287 | M41: 236
A42: 6 | B42: 150 | C42: 169 | D42: 9 | E42: 80 | F42: 30 | G42: 634 | H42: 500 | I42: 249 | J42: 407 | K42: 207.1067812 | L42: 329 | M42: 327
A43: 7 | B43: 200 | C43: 220 | D43: 11 | E43: 80 | F43: 49 | G43: 715 | H43: 600 | I43: 292 | J43: 449 | K43: 248.5281374 | L43: 372 | M43: 369
A44: 8 | B44: 250 | C44: 271.6 | D44: 12 | E44: 80 | F44: 65.2 | G44: 716 | H44: 600 | I44: 294 | J44: 449 | K44: 248.5281374 | L44: 374 | M44: 369
A45: 9 | B45: 300 | C45: 322.8 | D45: 12.5 | E45: 110 | F45: 93 | G45: 797 | H45: 700 | I45: 337 | J45: 490 | K45: 289.9494937 | L45: 447 | M45: 380
A46: 10 | B46: 350 | C46: 374 | D46: 13 | E46: 110 | F46: 121 | G46: 877 | H46: 800 | I46: 380 | J46: 531 | K46: 331.3708499 | L46: 490 | M46: 421
A47: 11 | B47: 400 | C47: 425.6 | D47: 14 | E47: 110 | F47: 158 | G47: 957 | H47: 900 | I47: 423 | J47: 573 | K47: 372.7922061 | L47: 533 | M47: 463
A48: 12 | B48: 450 | C48: 476.8 | D48: 14.5 | E48: 110 | F48: 196 | G48: 1037 | H48: 1000 | I48: 466 | J48: 614 | K48: 414.2135624 | L48: 576 | M48: 504
A49: 13 | B49: 500 | C49: 528 | D49: 15 | E49: 110 | F49: 239 | G49: 1118 | H49: 1100 | I49: 509 | J49: 656 | K49: 455.6349186 | L49: 619 | M49: 546
A50: 14 | B50: 600 | C50: 630.8 | D50: 16 | E50: 110 | F50: 340 | G50: 1276 | H50: 1300 | I50: 594 | J50: 739 | K50: 538.4776311 | L50: 704 | M50: 629
A51: 15 | B51: 700 | C51: 733 | D51: 17 | E51: 120 | F51: 468 | G51: 1435 | H51: 1500 | I51: 678 | J51: 821 | K51: 621.3203436 | L51: 798 | M51: 701
A52: 16 | B52: 800 | C52: 836 | D52: 18 | E52: 120 | F52: 620 | G52: 1596 | H52: 1700 | I52: 765 | J52: 904 | K52: 704.163056 | L52: 885 | M52: 784
A53: 17 | B53: 900 | C53: 939 | D53: 19 | E53: 120 | F53: 803 | G53: 1756 | H53: 1900 | I53: 851 | J53: 987 | K53: 787.0057685 | L53: 971 | M53: 867
A54: 18 | B54: 1000 | C54: 1041 | D54: 20 | E54: 130 | F54: 1020 | G54: 1917 | H54: 2100 | I54: 937 | J54: 1070 | K54: 869.848481 | L54: 1067 | M54: 940
A55: 19 | B55: 1100 | C55: 1144 | D55: 21 | E55: 130 | F55: 1270 | G55: 2076 | H55: 2300 | I55: 1022 | J55: 1153 | K55: 952.6911935 | L55: 1152 | M55: 1023
A56: 20 | B56: 1200 | C56: 1246 | D56: 22 | E56: 130 | F56: 1450 | G56: 2077 | H56: 2300 | I56: 1024 | J56: 1153 | K56: 952.6911935 | L56: 1154 | M56: 1023
A57: 21 | B57: 1350 | C57: 1400 | D57: 24 | E57: 130 | F57: 1780 | G57: 2081 | H57: 2300 | I57: 1027 | J57: 1153 | K57: 952.6911935 | L57: 1157 | M57: 1023
A58: 22 | B58: 1500 | C58: 1554 | D58: 26 | E58: 130 | F58: 2140 | G58: 2084 | H58: 2300 | I58: 1031 | J58: 1153 | K58: 952.6911935 | L58: 1161 | M58: 1023
A59: 23 | B59: 1600 | C59: 1650 | D59: 27.5 | E59: 160 | F59: 1890 | G59: 1557 | H59: 1500 | I59: 700 | J59: 921 | K59: 621.3203436 | L59: 860 | M59: 761
A60: 24 | B60: 1650 | C60: 1701 | D60: 28 | E60: 165 | F60: 2000 | G60: 1558 | H60: 1500 | I60: 702 | J60: 921 | K60: 621.3203436 | L60: 867 | M60: 756
A61: 25 | B61: 1800 | C61: 1848 | D61: 30 | E61: 170 | F61: 2340 | G61: 1563 | H61: 1500 | I61: 706 | J61: 921 | K61: 621.3203436 | L61: 876 | M61: 751
A62: 26 | B62: 2000 | C62: 2061 | D62: 32 | E62: 180 | F62: 2830 | G62: 1570 | H62: 1500 | I62: 713 | J62: 921 | K62: 621.3203436 | L62: 893 | M62: 741
A63: 27 | B63: 2100 | C63: 2164 | D63: 33 | E63: 185 | F63: 3340 | G63: 1730 | H63: 1700 | I63: 799 | J63: 1004 | K63: 704.163056 | L63: 984 | M63: 819
A64: 28 | B64: 2200 | C64: 2280 | D64: 34 | E64: 190 | F64: 3640 | G64: 1732 | H64: 1700 | I64: 801 | J64: 1004 | K64: 704.163056 | L64: 991 | M64: 814
A65: 29 | B65: 2400 | C65: 2458 | D65: 36 | E65: 200 | F65: 4320 | G65: 1789 | H65: 1700 | I65: 808 | J65: 1054 | K65: 704.163056 | L65: 1008 | M65: 854
A66: 30 | B66: 2600 | C66: 2684 | D66: 37.5 | E66: 230 | F66: 5180 | G66: 1855 | H66: 1740 | I66: 900 | J66: 1030 | K66: 720.7315985 | L66: 1130 | M66: 800
A67: 1 | B67: 22°1/2
A68: 2 | B68: 口径 | C68: 外径 | D68: 管厚 | E68: 受口長(P) | F68: 質量 | G68: 管心長 | H68: R | I68: L1 | J68: L2 | K68: TL | L68: A=L1+P | M68: B=L2-受口
A69: 3 | B69: (mm) | C69: (mm) | D69: (mm) | E69: (mm) | F69: (kg) | G69: (mm) | H69: (mm) | I69: (mm) | J69: (mm) | K69: (mm) | L69: (mm) | M69: (mm)
A70: 4 | B70: 75 | C70: 93 | D70: 8.5 | E70: 80 | F70: 13.2 | G70: 506 | H70: 800 | I70: 201 | J70: 309 | K70: =TAN(22.5/2*PI()/180)*H70 -> 159.1298939 | L70: =E70+I70 -> 281 | M70: =J70-E70 -> 229
A71: 5 | B71: 100 | C71: 118 | D71: 8.5 | E71: 80 | F71: 17.1 | G71: 506 | H71: 800 | I71: 201 | J71: 309 | K71: =TAN(22.5/2*PI()/180)*H71 -> 159.1298939 | L71: 281 | M71: 229
A72: 6 | B72: 150 | C72: 169 | D72: 9 | E72: 80 | F72: 28.3 | G72: 584 | H72: 1000 | I72: 240 | J72: 349 | K72: 198.9123674 | L72: 320 | M72: 269
A73: 7 | B73: 200 | C73: 220 | D73: 11 | E73: 80 | F73: 46.4 | G73: 665 | H73: 1200 | I73: 282 | J73: 389 | K73: 238.6948409 | L73: 362 | M73: 309
A74: 8 | B74: 250 | C74: 271.6 | D74: 12 | E74: 80 | F74: 61.7 | G74: 666 | H74: 1200 | I74: 284 | J74: 389 | K74: 238.6948409 | L74: 364 | M74: 309
A75: 9 | B75: 300 | C75: 322.8 | D75: 12.5 | E75: 110 | F75: 88.6 | G75: 747 | H75: 1400 | I75: 325 | J75: 429 | K75: 278.4773143 | L75: 435 | M75: 319
A76: 10 | B76: 350 | C76: 374 | D76: 13 | E76: 110 | F76: 115 | G76: 827 | H76: 1600 | I76: 367 | J76: 468 | K76: 318.2597878 | L76: 477 | M76: 358
A77: 11 | B77: 400 | C77: 425.6 | D77: 14 | E77: 110 | F77: 158 | G77: 957 | H77: 1800 | I77: 408 | J77: 558 | K77: 358.0422613 | L77: 518 | M77: 448
A78: 12 | B78: 450 | C78: 476.8 | D78: 14.5 | E78: 110 | F78: 196 | G78: 1037 | H78: 2000 | I78: 450 | J78: 598 | K78: 397.8247348 | L78: 560 | M78: 488
A79: 13 | B79: 500 | C79: 528 | D79: 15 | E79: 110 | F79: 239 | G79: 1118 | H79: 2200 | I79: 491 | J79: 638 | K79: 437.6072082 | L79: 601 | M79: 528
A80: 14 | B80: 600 | C80: 630.8 | D80: 16 | E80: 110 | F80: 340 | G80: 1276 | H80: 2600 | I80: 573 | J80: 717 | K80: 517.1721552 | L80: 683 | M80: 607
A81: 15 | B81: 700 | C81: 733 | D81: 17 | E81: 120 | F81: 468 | G81: 1435 | H81: 3000 | I81: 654 | J81: 797 | K81: 596.7371021 | L81: 774 | M81: 677
A82: 16 | B82: 800 | C82: 836 | D82: 18 | E82: 120 | F82: 620 | G82: 1596 | H82: 3400 | I82: 737 | J82: 876 | K82: 676.3020491 | L82: 857 | M82: 756
A83: 17 | B83: 900 | C83: 939 | D83: 19 | E83: 120 | F83: 803 | G83: 1756 | H83: 3800 | I83: 820 | J83: 956 | K83: 755.866996 | L83: 940 | M83: 836
A84: 18 | B84: 1000 | C84: 1041 | D84: 20 | E84: 130 | F84: 1020 | G84: 1917 | H84: 4200 | I84: 903 | J84: 1035 | K84: 835.431943 | L84: 1033 | M84: 905
A85: 19 | B85: 1100 | C85: 1144 | D85: 21 | E85: 130 | F85: 1240 | G85: 2036 | H85: 4500 | I85: 964 | J85: 1095 | K85: 895.1056532 | L85: 1094 | M85: 965
A86: 20 | B86: 1200 | C86: 1246 | D86: 22 | E86: 130 | F86: 1420 | G86: 2038 | H86: 4500 | I86: 966 | J86: 1095 | K86: 895.1056532 | L86: 1096 | M86: 965
A87: 21 | B87: 1350 | C87: 1400 | D87: 24 | E87: 130 | F87: 1750 | G87: 2042 | H87: 4500 | I87: 970 | J87: 1095 | K87: 895.1056532 | L87: 1100 | M87: 965
A88: 22 | B88: 1500 | C88: 1554 | D88: 26 | E88: 130 | F88: 2110 | G88: 2045 | H88: 4500 | I88: 973 | J88: 1095 | K88: 895.1056532 | L88: 1103 | M88: 965
A89: 23 | B89: 1600 | C89: 1650 | D89: 27.5 | E89: 160 | F89: 1890 | G89: 1557 | H89: 3000 | I89: 675 | J89: 897 | K89: 596.7371021 | L89: 835 | M89: 737
A90: 24 | B90: 1650 | C90: 1701 | D90: 28 | E90: 165 | F90: 2000 | G90: 1558 | H90: 3000 | I90: 677 | J90: 897 | K90: 596.7371021 | L90: 842 | M90: 732
A91: 25 | B91: 1800 | C91: 1848 | D91: 30 | E91: 170 | F91: 2340 | G91: 1563 | H91: 3000 | I91: 682 | J91: 897 | K91: 596.7371021 | L91: 852 | M91: 727
A92: 26 | B92: 2000 | C92: 2061 | D92: 32 | E92: 180 | F92: 2830 | G92: 1570 | H92: 3000 | I92: 688 | J92: 897 | K92: 596.7371021 | L92: 868 | M92: 717
A93: 27 | B93: 2100 | C93: 2164 | D93: 33 | E93: 185 | F93: 3340 | G93: 1730 | H93: 3400 | I93: 771 | J93: 976 | K93: 676.3020491 | L93: 956 | M93: 791
A94: 28 | B94: 2200 | C94: 2280 | D94: 34 | E94: 190 | F94: 3640 | G94: 1732 | H94: 3400 | I94: 774 | J94: 976 | K94: 676.3020491 | L94: 964 | M94: 786
A95: 29 | B95: 2400 | C95: 2458 | D95: 36 | E95: 200 | F95: 4320 | G95: 1789 | H95: 3400 | I95: 780 | J95: 1026 | K95: 676.3020491 | L95: 980 | M95: 826
A96: 30 | B96: 2600 | C96: 2684 | D96: 37.5 | E96: 230 | F96: 5300 | G96: 1911 | H96: 3640 | I96: 900 | J96: 1030 | K96: 724.0410173 | L96: 1130 | M96: 800
A97: 1 | B97: 11°1/4 | L97: A | M97: B
A98: 2 | B98: 口径 | C98: 外径 | D98: 管厚 | E98: 受口長(P) | F98: 質量 | G98: 管心長 | H98: R | I98: L1 | J98: L2 | K98: TL | L98: A=L1+P | M98: B=L2-受口
A99: 3 | B99: (mm) | C99: (mm) | D99: (mm) | E99: (mm) | F99: (kg) | G99: (mm) | H99: (mm) | I99: (mm) | J99: (mm) | K99: (mm) | L99: (mm) | M99: (mm)
A100: 4 | B100: 75 | C100: 93 | D100: 8.5 | E100: 80 | F100: 17.7 | G100: 781 | H100: 3000 | I100: 337 | J100: 446 | K100: =TAN(11.25/2*PI()/180)*H100 -> 295.4742101 | L100: =E100+I100 -> 417 | M100: =J100-E100 -> 366
A101: 5 | B101: 100 | C101: 118 | D101: 8.5 | E101: 80 | F101: 22.9 | G101: 781 | H101: 3000 | I101: 337 | J101: 446 | K101: =TAN(11.25/2*PI()/180)*H101 -> 295.4742101 | L101: 417 | M101: 366
A102: 6 | B102: 150 | C102: 169 | D102: 9 | E102: 80 | F102: 34.7 | G102: 781 | H102: 3000 | I102: 337 | J102: 446 | K102: 295.4742101 | L102: 417 | M102: 366
A103: 7 | B103: 200 | C103: 220 | D103: 11 | E103: 80 | F103: 62.6 | G103: 979 | H103: 4000 | I103: 437 | J103: 544 | K103: 393.9656134 | L103: 517 | M103: 464
A104: 8 | B104: 250 | C104: 271.6 | D104: 12 | E104: 80 | F104: 83.7 | G104: 980 | H104: 4000 | I104: 439 | J104: 544 | K104: 393.9656134 | L104: 519 | M104: 464
A105: 9 | B105: 300 | C105: 322.8 | D105: 12.5 | E105: 110 | F105: 109 | G105: 982 | H105: 4000 | I105: 441 | J105: 544 | K105: 393.9656134 | L105: 551 | M105: 434
A106: 10 | B106: 350 | C106: 374 | D106: 13 | E106: 110 | F106: 153 | G106: 1180 | H106: 5000 | I106: 541 | J106: 643 | K106: 492.4570168 | L106: 651 | M106: 533
A107: 11 | B107: 400 | C107: 425.6 | D107: 14 | E107: 110 | F107: 193 | G107: 1232 | H107: 5000 | I107: 543 | J107: 693 | K107: 492.4570168 | L107: 653 | M107: 583
A108: 12 | B108: 450 | C108: 476.8 | D108: 14.5 | E108: 110 | F108: 226 | G108: 1234 | H108: 5000 | I108: 544 | J108: 693 | K108: 492.4570168 | L108: 654 | M108: 583
A109: 13 | B109: 500 | C109: 528 | D109: 15 | E109: 110 | F109: 294 | G109: 1432 | H109: 6000 | I109: 645 | J109: 791 | K109: 590.9484201 | L109: 755 | M109: 681
A110: 14 | B110: 600 | C110: 630.8 | D110: 16 | E110: 110 | F110: 375 | G110: 1434 | H110: 6000 | I110: 646 | J110: 791 | K110: 590.9484201 | L110: 756 | M110: 681
A111: 15 | B111: 700 | C111: 733 | D111: 17 | E111: 120 | F111: 468 | G111: 1435 | H111: 6000 | I111: 648 | J111: 791 | K111: 590.9484201 | L111: 768 | M111: 671
A112: 16 | B112: 800 | C112: 836 | D112: 18 | E112: 120 | F112: 568 | G112: 1439 | H112: 6000 | I112: 652 | J112: 791 | K112: 590.9484201 | L112: 772 | M112: 671
A113: 17 | B113: 900 | C113: 939 | D113: 19 | E113: 120 | F113: 679 | G113: 1442 | H113: 6000 | I113: 655 | J113: 791 | K113: 590.9484201 | L113: 775 | M113: 671
A114: 18 | B114: 1000 | C114: 1041 | D114: 20 | E114: 130 | F114: 804 | G114: 1446 | H114: 6000 | I114: 658 | J114: 791 | K114: 590.9484201 | L114: 788 | M114: 661
A115: 19 | B115: 1100 | C115: 1144 | D115: 21 | E115: 130 | F115: 933 | G115: 1447 | H115: 6000 | I115: 660 | J115: 791 | K115: 590.9484201 | L115: 790 | M115: 661
A116: 20 | B116: 1200 | C116: 1246 | D116: 22 | E116: 130 | F116: 1070 | G116: 1449 | H116: 6000 | I116: 662 | J116: 791 | K116: 590.9484201 | L116: 792 | M116: 661
A117: 21 | B117: 1350 | C117: 1400 | D117: 24 | E117: 130 | F117: 1310 | G117: 1453 | H117: 6000 | I117: 665 | J117: 791 | K117: 590.9484201 | L117: 795 | M117: 661
A118: 22 | B118: 1500 | C118: 1554 | D118: 26 | E118: 130 | F118: 1580 | G118: 1456 | H118: 6000 | I118: 669 | J118: 791 | K118: 590.9484201 | L118: 799 | M118: 661
A119: 23 | B119: 1600 | C119: 1650 | D119: 27.5 | E119: 160 | F119: 1890 | G119: 1557 | H119: 6000 | I119: 669 | J119: 891 | K119: 590.9484201 | L119: 829 | M119: 731
A120: 24 | B120: 1650 | C120: 1701 | D120: 28 | E120: 165 | F120: 2000 | G120: 1558 | H120: 6000 | I120: 671 | J120: 891 | K120: 590.9484201 | L120: 836 | M120: 726
A121: 25 | B121: 1800 | C121: 1848 | D121: 30 | E121: 170 | F121: 2340 | G121: 1563 | H121: 6000 | I121: 676 | J121: 891 | K121: 590.9484201 | L121: 846 | M121: 721
A122: 26 | B122: 2000 | C122: 2061 | D122: 32 | E122: 180 | F122: 2830 | G122: 1570 | H122: 6000 | I122: 682 | J122: 891 | K122: 590.9484201 | L122: 862 | M122: 711
A123: 27 | B123: 2100 | C123: 2164 | D123: 33 | E123: 185 | F123: 3090 | G123: 1572 | H123: 6000 | I123: 685 | J123: 891 | K123: 590.9484201 | L123: 870 | M123: 706
A124: 28 | B124: 2200 | C124: 2280 | D124: 34 | E124: 190 | F124: 3370 | G124: 1575 | H124: 6000 | I124: 688 | J124: 891 | K124: 590.9484201 | L124: 878 | M124: 701
A125: 29 | B125: 2400 | C125: 2458 | D125: 36 | E125: 200 | F125: 4010 | G125: 1632 | H125: 6000 | I125: 695 | J125: 941 | K125: 590.9484201 | L125: 895 | M125: 741
A126: 30 | B126: 2600 | C126: 2684 | D126: 37.5 | E126: 230 | F126: 3730 | G126: 1208 | H126: 3640 | I126: 540 | J126: 670 | K126: 358.5087082 | L126: 770 | M126: 440
A127: 1 | B127: 5°5/8
A128: 2 | B128: 口径 | C128: 外径 | D128: 管厚 | E128: 受口長(P) | F128: 質量 | G128: 管心長 | H128: R | I128: L1 | J128: L2 | K128: TL | L128: A=L1+P | M128: B=L2-受口
A129: 3 | B129: (mm) | C129: (mm) | D129: (mm) | E129: (mm) | F129: (kg) | G129: (mm) | H129: (mm) | I129: (mm) | J129: (mm) | K129: (mm) | L129: (mm) | M129: (mm)
A130: 4 | B130: 75 | C130: 93 | D130: 8.5 | E130: 80
A131: 5 | B131: 100 | C131: 118 | D131: 8.5 | E131: 80
A132: 6 | B132: 150 | C132: 169 | D132: 9 | E132: 80
A133: 7 | B133: 200 | C133: 220 | D133: 11 | E133: 80
A134: 8 | B134: 250 | C134: 271.6 | D134: 12 | E134: 80
A135: 9 | B135: 300 | C135: 322.8 | D135: 12.5 | E135: 110 | F135: 126 | G135: 1178 | H135: 10000 | I135: 538 | J135: 641 | K135: =TAN(5.625/2*PI()/180)*H135 -> 491.2684977 | L135: =E135+I135 -> 648 | M135: =J135-E135 -> 531
A136: 10 | B136: 350 | C136: 374 | D136: 13 | E136: 110 | F136: 153 | G136: 1180 | H136: 10000 | I136: 540 | J136: 641 | K136: =TAN(5.625/2*PI()/180)*H136 -> 491.2684977 | L136: 650 | M136: 531
A137: 11 | B137: 400 | C137: 425.6 | D137: 14 | E137: 110 | F137: 193 | G137: 1232 | H137: 10000 | I137: 542 | J137: 691 | K137: 491.2684977 | L137: 652 | M137: 581
A138: 12 | B138: 450 | C138: 476.8 | D138: 14.5 | E138: 110 | F138: 226 | G138: 1234 | H138: 10000 | I138: 543 | J138: 691 | K138: 491.2684977 | L138: 653 | M138: 581
A139: 13 | B139: 500 | C139: 528 | D139: 15 | E139: 110 | F139: 294 | G139: 1432 | H139: 12000 | I139: 643 | J139: 790 | K139: 589.5221972 | L139: 753 | M139: 680
A140: 14 | B140: 600 | C140: 630.8 | D140: 16 | E140: 110 | F140: 375 | G140: 1434 | H140: 12000 | I140: 645 | J140: 790 | K140: 589.5221972 | L140: 755 | M140: 680
A141: 15 | B141: 700 | C141: 733 | D141: 17 | E141: 120 | F141: 468 | G141: 1435 | H141: 12000 | I141: 647 | J141: 790 | K141: 589.5221972 | L141: 767 | M141: 670
A142: 16 | B142: 800 | C142: 836 | D142: 18 | E142: 120 | F142: 568 | G142: 1439 | H142: 12000 | I142: 650 | J142: 790 | K142: 589.5221972 | L142: 770 | M142: 670
A143: 17 | B143: 900 | C143: 939 | D143: 19 | E143: 120 | F143: 679 | G143: 1442 | H143: 12000 | I143: 654 | J143: 790 | K143: 589.5221972 | L143: 774 | M143: 670
A144: 18 | B144: 1000 | C144: 1041 | D144: 20 | E144: 130 | F144: 804 | G144: 1446 | H144: 12000 | I144: 657 | J144: 790 | K144: 589.5221972 | L144: 787 | M144: 660
A145: 19 | B145: 1100 | C145: 1144 | D145: 21 | E145: 130 | F145: 933 | G145: 1447 | H145: 12000 | I145: 659 | J145: 790 | K145: 589.5221972 | L145: 789 | M145: 660
A146: 20 | B146: 1200 | C146: 1246 | D146: 22 | E146: 130 | F146: 1070 | G146: 1449 | H146: 12000 | I146: 661 | J146: 790 | K146: 589.5221972 | L146: 791 | M146: 660
A147: 21 | B147: 1350 | C147: 1400 | D147: 24 | E147: 130 | F147: 1310 | G147: 1453 | H147: 12000 | I147: 664 | J147: 790 | K147: 589.5221972 | L147: 794 | M147: 660
A148: 22 | B148: 1500 | C148: 1554 | D148: 26 | E148: 130 | F148: 1580 | G148: 1456 | H148: 12000 | I148: 667 | J148: 790 | K148: 589.5221972 | L148: 797 | M148: 660
A149: 23 | B149: 1600 | C149: 1650 | D149: 27.5 | E149: 160 | F149: 1890 | G149: 1557 | H149: 12000 | I149: 668 | J149: 890 | K149: 589.5221972 | L149: 828 | M149: 730
A150: 24 | B150: 1650 | C150: 1701 | D150: 28 | E150: 165 | F150: 2000 | G150: 1558 | H150: 12000 | I150: 670 | J150: 890 | K150: 589.5221972 | L150: 835 | M150: 725
A151: 25 | B151: 1800 | C151: 1848 | D151: 30 | E151: 170 | F151: 2340 | G151: 1563 | H151: 12000 | I151: 675 | J151: 890 | K151: 589.5221972 | L151: 845 | M151: 720
A152: 26 | B152: 2000 | C152: 2061 | D152: 32 | E152: 180 | F152: 2830 | G152: 1570 | H152: 12000 | I152: 681 | J152: 890 | K152: 589.5221972 | L152: 861 | M152: 710
A153: 27 | B153: 2100 | C153: 2164 | D153: 33 | E153: 185 | F153: 3090 | G153: 1572 | H153: 12000 | I153: 684 | J153: 890 | K153: 589.5221972 | L153: 869 | M153: 705
A154: 28 | B154: 2200 | C154: 2280 | D154: 34 | E154: 190 | F154: 3370 | G154: 1575 | H154: 12000 | I154: 687 | J154: 890 | K154: 589.5221972 | L154: 877 | M154: 700
A155: 29 | B155: 2400 | C155: 2458 | D155: 36 | E155: 200 | F155: 4010 | G155: 1632 | H155: 12000 | I155: 693 | J155: 940 | K155: 589.5221972 | L155: 893 | M155: 740
A156: 30 | B156: 2600 | C156: 2684 | D156: 37.5 | E156: 230 | F156: 3740 | G156: 1209 | H156: 7280 | I156: 540 | J156: 670 | K156: 357.6434663 | L156: 770 | M156: 440

Sheet Sheet1
L32: β1=θ1+θ2
L33: β2=θ1+θ2+θ3
L34: β3=θ1+θ2+θ3+θ4
L36: α1=180-β1
L37: α2=180-β2
L38: α3=180-β3
B39: 口径 | C39: 300 | D39: 外径 | F39: FH | G39: 20
B40: θS | C40: θ1 | D40: θ2 | E40: θ3 | F40: θ4 | G40: θE | L40: θE=θS+α3
B41: （deg) | C41: （deg) | D41: （deg) | E41: （deg) | F41: （deg) | G41: （mm)
B42: 22.5 | C42: 45 | D42: 22.5 | E42: 11.25 | F42: 5.625
B43: β1 | C43: β2 | D43: β3 | L43: KL0＝L1a+A1+A2+A3 | O43: γ1=θ1-θS
B44: （deg) | C44: （deg) | D44: （deg)
B45: =C42+D42 -> 67.5 | C45: =B45+E42 -> 78.75 | D45: =C45+F42 -> 84.375 | L45: KLS=L1a*Cos(θS) | O45: γ2=θ1+θ2-θS
B46: L1 | C46: L2 | D46: L3 | E46: A1 | F46: A2 | G46: A3 | H46: B1 | I46: B2 | J46: B3 | L46: HS=L1a*Sin(θS)
B47: （mm) | C47: （mm) | D47: （mm) | E47: （mm) | F47: （mm) | G47: （mm) | H47: （mm) | I47: （mm) | J47: （mm) | O47: γ3=θ1+θ2+θ3-θS
L48: KL1=L1*Cos(γ1)
B49: 45° | D49: 22°1/2 | F49: 11°1/4 | H49: 5°5/8 | L49: KL2=L2*Cos(γ2) | O49: γ4=θ1+θ2+θ3+θ4-θS
B50: La | C50: Lb | D50: La | E50: Lb | F50: La | G50: Lb | H50: La | I50: Lb | L50: KL3=L3*Cos(γ3)
B51: （mm) | C51: （mm) | D51: （mm) | E51: （mm) | F51: （mm) | G51: （mm) | H51: （mm) | I51: （mm)
L52: H1=L1*Sin(γ1)
B53: H0 | C53: HS | D53: H1 | E53: H2 | F53: H3 | G53: HE | L53: H2=L2*Sin(γ2)
B54: （mm) | C54: （mm) | D54: （mm) | E54: （mm) | F54: （mm) | G54: （mm) | L54: H3=L3*Sin(γ3)
B56: KL0 | C56: KLS | D56: KL1 | E56: KL2 | F56: KL3 | G56: KLE
B57: （mm) | C57: （mm) | D57: （mm) | E57: （mm) | F57: （mm) | G57: （mm)
B59: ELS | C59: EL1 | D59: EL2 | E59: EL3 | F59: EL4 | G59: ELE
B60: （m) | C60: （m) | D60: （m) | E60: （m) | F60: （m) | G60: （m)

Sheet 配管設計2
Y5: 組合せ曲管の個数が2以上の場合には、配管設計1
Y6: にて偏角点（IP)の測点を決定してから、該当する曲管
Y7: の諸元を入力し、実行ボタンをクリックする。
Z10: X | AA10: ＝-TL*Cos(θS)+R*Sin(θS)
Z11: Y | AA11: =EL-TL*Sin(θS)-R*Cos(θS)
AE14: =101.2-45 -> 56.2
Y15: 点IPの座標を次のように設定する
Y17: 点IP | AA17: 点O
Y18: X座標 | Z18: Y座標(EL) | AA18: X座標 | AB18: Y座標(EL)
Y19: （m) | Z19: (m) | AA19: （m) | AB19: (m)
Y20: 0 | Z20: 18.5
Y25: θ1～θ2への角度刻みを1度とし、角度を変化させて管頂高および管底高
Y26: を求めて、最大値、最小値を求める。
A30: 1 | B30: 2 | C30: 3 | D30: 4 | E30: 5 | F30: 6 | G30: 7 | H30: 8 | I30: 9 | J30: 10 | K30: 11 | L30: 12 | M30: 13 | N30: 14 | O30: 15 | P30: 16 | Q30: 17 | R30: 18 | S30: 19 | T30: 20 | U30: 21
C32: 勾配 | L32: 18.5
B33: GH | C33: 地盤高 | D33: (m) | E33: 18.5 | L33: 20 | S33: 16.3
B34: FH | C34: 計画高 | D34: (m) | E34: 17 | L34: 18.5 | S34: 15
B35: Dis | C35: 区間距離 | D35: (m) | E35: 20 | L35: 45 | S35: 55
B36: Tuika_Dis | C36: 追加距離 | D36: (m) | E36: 100 | L36: 145 | S36: 200
B37: SP | C37: 測点 | E37: No.1 | L37: IP.1 | S37: No.2
C38: 平面偏角
C40: 管種 | E40: VP | AC40: θ | AD40: I | AE40: TH（I) | AH40: I | AI40: UH(I)
C41: 口径 | E41: 外径 | G41: θS | I41: θE | K41: θ | M41: R | O41: TL | Q41: La | S41: Lb | U41: L1 | W41: L2 | AC41: 101.1500003 | AD41: 1 | AE41: 18.5867162 | AF41: 0.01545499238 | AH41: 1 | AI41: 18.27648469 | AJ41: -0.04569121062
B42: 0 | C42: (mm) | E42: (mm) | G42: （deg) | I42: （deg) | K42: （deg) | M42: （mm) | O42: （mm) | Q42: (mm) | S42: (mm) | U42: (mm) | W42: (mm) | AC42: 101.0500003 | AD42: 2 | AE42: 18.58705494 | AF42: 0.01372844107 | AH42: 2 | AI42: 18.27671718 | AJ42: -0.04687621293
C43: 300 | E43: 316.2000122 | G43: 11.25 | I43: =G43-K43 -> -33.75 | K43: 45 | M43: 850 | O43: 352.081543 | Q43: 107.9184723 | S43: 505 | U43: =O43+Q43 -> 460.0000153 | W43: =O43+S43 -> 857.081543 | Z43: =K43*PI()/180 -> 0.7853981634 | AC43: 100.9500003 | AD43: 3 | AE43: 18.58739066 | AF43: 0.01200130106 | AH43: 3 | AI43: 18.2769476 | AJ43: -0.0480616193
C44: 管頂高 | M44: 管中心高 | AC44: 100.8500003 | AD44: 4 | AE44: 18.58772337 | AF44: 0.01027357799 | AH44: 4 | AI44: 18.27717595 | AJ44: -0.04924742584
C45: TH1 | E45: TH2 | G45: TH3 | I45: TH4 | K45: TH5 | M45: FH1 | O45: FH2 | Q45: ＦH3 | S45: ＦH4 | U45: ＦH5 | AC45: 100.7500003 | AD45: 5 | AE45: 18.58805306 | AF45: 0.008545276865 | AH45: 5 | AI45: 18.27740223 | AJ45: -0.05043362912
C46: （m) | E46: （m) | G46: （m) | I46: （m) | K46: （m) | M46: （m) | O46: （m) | Q46: （m) | S46: （m) | U46: （m) | AC46: 100.6500002 | AD46: 6 | AE46: 18.58837973 | AF46: 0.006816402441 | AH46: 6 | AI46: 18.27762644 | AJ46: -0.05162022588
M47: =L34-TAN(G43*PI()/180)*U43/1000 -> 18.40850031 | O47: =L34-TAN(G43*PI()/180)*O43/1000 -> 18.42996663 | S47: =L34+TAN(I43*PI()/180)*O43/1000 -> 18.26474663 | U47: =L34+TAN(I43*PI()/180)*W43/1000 -> 17.92731642 | AC47: 100.5500003 | AD47: 7 | AE47: 18.58870339 | AF47: 0.005086961526 | AH47: 7 | AI47: 18.27784858 | AJ47: -0.05280721145
C48: 管底高 | M48: 土かぶり | AC48: 100.4500003 | AD48: 8 | AE48: 18.58902403 | AF48: 0.003356957329 | AH48: 8 | AI48: 18.27806865 | AJ48: -0.05399458362
C49: UH1 | E49: UH2 | G49: UH3 | I49: UH4 | K49: UH5 | M49: CH1 | O49: CH2 | Q49: CH3 | S49: CH4 | U49: CH5 | AC49: 100.3500003 | AD49: 9 | AE49: 18.58934164 | AF49: 0.001626397181 | AH49: 9 | AI49: 18.27828664 | AJ49: -0.05518233736
C50: （m) | E50: （m) | G50: （m) | I50: （m) | K50: （m) | M50: （m) | O50: （m) | Q50: （m) | S50: （m) | U50: （m) | AC50: 100.2500003 | AD50: 10 | AE50: 18.58965624 | AF50: -0.0001047157099 | AH50: 10 | AI50: 18.27850256 | AJ50: -0.05637047048
AC51: 100.1500002 | AD51: 11 | AE51: 18.58996782 | AF51: -0.001836375038 | AH51: 11 | AI51: 18.27871641 | AJ51: -0.05755897863
AC52: 100.0500002 | AD52: 12 | AE52: 18.59027637 | AF52: -0.00356857553 | AH52: 12 | AI52: 18.27892818 | AJ52: -0.05874785821
AC53: 99.95000032 | AD53: 13 | AE53: 18.59058189 | AF53: -0.005301309841 | AH53: 13 | AI53: 18.27913787 | AJ53: -0.05993710417
AC54: 99.85000029 | AD54: 14 | AE54: 18.5908844 | AF54: -0.007034576826 | AH54: 14 | AI54: 18.2793455 | AJ54: -0.06112671573
AC55: 99.75000027 | AD55: 15 | AE55: 18.59118388 | AF55: -0.00876836914 | AH55: 15 | AI55: 18.27955104 | AJ55: -0.06231668784
AC56: 99.65000025 | AD56: 16 | AE56: 18.59148033 | AF56: -0.0105026815 | AH56: 16 | AI56: 18.27975451 | AJ56: -0.06350701688
AC57: 99.55000022 | AD57: 17 | AE57: 18.59177375 | AF57: -0.01223750862 | AH57: 17 | AI57: 18.27995589 | AJ57: -0.06469769922
AC58: 99.45000032 | AD58: 18 | AE58: 18.59206415 | AF58: -0.01397284316 | AH58: 18 | AI58: 18.2801552 | AJ58: -0.06588872982
AC59: 99.35000029 | AD59: 19 | AE59: 18.59235151 | AF59: -0.01570868395 | AH59: 19 | AI59: 18.28035244 | AJ59: -0.06708010788
AC60: 99.25000027 | AD60: 20 | AE60: 18.59263585 | AF60: -0.01744502365 | AH60: 20 | AI60: 18.28054759 | AJ60: -0.06827182837
AC61: 99.15000037 | AD61: 21 | AE61: 18.59291716 | AF61: -0.0191818549 | AH61: 21 | AI61: 18.28074066 | AJ61: -0.06946388622
AC62: 99.05000022 | AD62: 22 | AE62: 18.59319543 | AF62: -0.02091917861 | AH62: 22 | AI62: 18.28093165 | AJ62: -0.07065628207
AC63: 98.95000032 | AD63: 23 | AE63: 18.59347067 | AF63: -0.02265698122 | AH63: 23 | AI63: 18.28112056 | AJ63: -0.07184900661
AC64: 98.85000018 | AD64: 24 | AE64: 18.59374288 | AF64: -0.0243952657 | AH64: 24 | AI64: 18.28130739 | AJ64: -0.07304206188
AC65: 98.75000027 | AD65: 25 | AE65: 18.59401205 | AF65: -0.02613401849 | AH65: 25 | AI65: 18.28149213 | AJ65: -0.07423543856
AC66: 98.65000037 | AD66: 26 | AE66: 18.59427819 | AF66: -0.02787323842 | AH66: 26 | AI66: 18.28167479 | AJ66: -0.07542913587
AC67: 98.55000022 | AD67: 27 | AE67: 18.59454129 | AF67: -0.02961292435 | AH67: 27 | AI67: 18.28185537 | AJ67: -0.07662315301
AC68: 98.45000032 | AD68: 28 | AE68: 18.59480136 | AF68: -0.03135306269 | AH68: 28 | AI68: 18.28203386 | AJ68: -0.07781748065
AC69: 98.35000018 | AD69: 29 | AE69: 18.59505839 | AF69: -0.03309365642 | AH69: 29 | AI69: 18.28221027 | AJ69: -0.07901212085
AC70: 98.25000027 | AD70: 30 | AE70: 18.59531238 | AF70: -0.03483469195 | AH70: 30 | AI70: 18.2823846 | AJ70: -0.08020706427
AC71: 98.15000037 | AD71: 31 | AE71: 18.59556333 | AF71: -0.03657616812 | AH71: 31 | AI71: 18.28255683 | AJ71: -0.08140231013
AC72: 98.05000022 | AD72: 32 | AE72: 18.59581124 | AF72: -0.03831808379 | AH72: 32 | AI72: 18.28272699 | AJ72: -0.08259785762
AC73: 97.95000032 | AD73: 33 | AE73: 18.59605611 | AF73: -0.04006042533 | AH73: 33 | AI73: 18.28289505 | AJ73: -0.08379369742
AC74: 97.85000018 | AD74: 34 | AE74: 18.59629794 | AF74: -0.04180319576 | AH74: 34 | AI74: 18.28306103 | AJ74: -0.08498983157
AC75: 97.75000027 | AD75: 35 | AE75: 18.59653672 | AF75: -0.04354638144 | AH75: 35 | AI75: 18.28322492 | AJ75: -0.08618625073
AC76: 97.65000037 | AD76: 36 | AE76: 18.59677247 | AF76: -0.04528998123 | AH76: 36 | AI76: 18.28338672 | AJ76: -0.08738295411
AC77: 97.55000022 | AD77: 37 | AE77: 18.59700517 | AF77: -0.04703399398 | AH77: 37 | AI77: 18.28354643 | AJ77: -0.08857994092
AC78: 97.45000032 | AD78: 38 | AE78: 18.59723483 | AF78: -0.04877840605 | AH78: 38 | AI78: 18.28370405 | AJ78: -0.0897772018
AC79: 97.35000018 | AD79: 39 | AE79: 18.59746144 | AF79: -0.05052322045 | AH79: 39 | AI79: 18.28385958 | AJ79: -0.09097473881
AC80: 97.25000027 | AD80: 40 | AE80: 18.597685 | AF80: -0.05226842354 | AH80: 40 | AI80: 18.28401303 | AJ80: -0.0921725426
AC81: 97.15000037 | AD81: 41 | AE81: 18.59790552 | AF81: -0.05401401417 | AH81: 41 | AI81: 18.28416438 | AJ81: -0.09337061238
AC82: 97.05000046 | AD82: 42 | AE82: 18.598123 | AF82: -0.05575998702 | AH82: 42 | AI82: 18.28431364 | AJ82: -0.09456894448
AC83: 96.95000008 | AD83: 43 | AE83: 18.59833742 | AF83: -0.05750634509 | AH83: 43 | AI83: 18.28446081 | AJ83: -0.09576754099
AC84: 96.85000018 | AD84: 44 | AE84: 18.5985488 | AF84: -0.05925306643 | AH84: 44 | AI84: 18.28460588 | AJ84: -0.09696638681
AC85: 96.75000027 | AD85: 45 | AE85: 18.59875713 | AF85: -0.06100015402 | AH85: 45 | AI85: 18.28474887 | AJ85: -0.09816548401
AC86: 96.65000037 | AD86: 46 | AE86: 18.5989624 | AF86: -0.06274760255 | AH86: 46 | AI86: 18.28488976 | AJ86: -0.09936482894
AC87: 96.55000046 | AD87: 47 | AE87: 18.59916463 | AF87: -0.0644954067 | AH87: 47 | AI87: 18.28502856 | AJ87: -0.1005644179
AC88: 96.45000008 | AD88: 48 | AE88: 18.59936381 | AF88: -0.06624356948 | AH88: 48 | AI88: 18.28516526 | AJ88: -0.1017642531
AC89: 96.35000018 | AD89: 49 | AE89: 18.59955993 | AF89: -0.06799206889 | AH89: 49 | AI89: 18.28529987 | AJ89: -0.1029643193
AC90: 96.25000027 | AD90: 50 | AE90: 18.59975301 | AF90: -0.06974090793 | AH90: 50 | AI90: 18.28543238 | AJ90: -0.1041646186
AC91: 96.15000037 | AD91: 51 | AE91: 18.59994303 | AF91: -0.0714900813 | AH91: 51 | AI91: 18.2855628 | AJ91: -0.1053651473
AC92: 96.05000046 | AD92: 52 | AE92: 18.60013 | AF92: -0.07323958364 | AH92: 52 | AI92: 18.28569113 | AJ92: -0.1065659019
AC93: 95.95000008 | AD93: 53 | AE93: 18.60031391 | AF93: -0.07498941799 | AH93: 53 | AI93: 18.28581735 | AJ93: -0.1077668843
AC94: 95.85000018 | AD94: 54 | AE94: 18.60049477 | AF94: -0.07673956232 | AH94: 54 | AI94: 18.28594149 | AJ94: -0.1089680794
AC95: 95.75000027 | AD95: 55 | AE95: 18.60067258 | AF95: -0.07849001964 | AH95: 55 | AI95: 18.28606352 | AJ95: -0.1101694894
AC96: 95.65000037 | AD96: 56 | AE96: 18.60084733 | AF96: -0.08024078462 | AH96: 56 | AI96: 18.28618346 | AJ96: -0.1113711105
AC97: 95.55000046 | AD97: 57 | AE97: 18.60101902 | AF97: -0.08199185193 | AH97: 57 | AI97: 18.2863013 | AJ97: -0.1125729392
AC98: 95.45000008 | AD98: 58 | AE98: 18.60118766 | AF98: -0.08374322459 | AH98: 58 | AI98: 18.28641704 | AJ98: -0.1137749774
AC99: 95.35000018 | AD99: 59 | AE99: 18.60135324 | AF99: -0.08549488056 | AH99: 59 | AI99: 18.28653069 | AJ99: -0.1149772101
AC100: 95.25000027 | AD100: 60 | AE100: 18.60151576 | AF100: -0.08724682285 | AH100: 60 | AI100: 18.28664223 | AJ100: -0.1161796392
AC101: 95.15000037 | AD101: 61 | AE101: 18.60167523 | AF101: -0.08899904613 | AH101: 61 | AI101: 18.28675168 | AJ101: -0.1173822613
AC102: 95.05000046 | AD102: 62 | AE102: 18.60183163 | AF102: -0.09075154506 | AH102: 62 | AI102: 18.28685903 | AJ102: -0.1185850725
AC103: 94.95000008 | AD103: 63 | AE103: 18.60198498 | AF103: -0.09250432265 | AH103: 63 | AI103: 18.28696428 | AJ103: -0.119788075
AC104: 94.85000018 | AD104: 64 | AE104: 18.60213527 | AF104: -0.09425735687 | AH104: 64 | AI104: 18.28706742 | AJ104: -0.1209912536
AC105: 94.75000027 | AD105: 65 | AE105: 18.6022825 | AF105: -0.09601065071 | AH105: 65 | AI105: 18.28716847 | AJ105: -0.1221946104
AC106: 94.65000037 | AD106: 66 | AE106: 18.60242667 | AF106: -0.09776419884 | AH106: 66 | AI106: 18.28726742 | AJ106: -0.1233981417
AC107: 94.55000046 | AD107: 67 | AE107: 18.60256777 | AF107: -0.09951799593 | AH107: 67 | AI107: 18.28736427 | AJ107: -0.1246018439
AC108: 94.45000008 | AD108: 68 | AE108: 18.60270582 | AF108: -0.101272045 | AH108: 68 | AI108: 18.28745902 | AJ108: -0.125805719
AC109: 94.35000018 | AD109: 69 | AE109: 18.6028408 | AF109: -0.1030263239 | AH109: 69 | AI109: 18.28755166 | AJ109: -0.127009752
AC110: 94.25000027 | AD110: 70 | AE110: 18.60297273 | AF110: -0.1047808358 | AH110: 70 | AI110: 18.28764221 | AJ110: -0.1282139448
AC111: 94.15000037 | AD111: 71 | AE111: 18.60310159 | AF111: -0.1065355753 | AH111: 71 | AI111: 18.28773065 | AJ111: -0.1294182937
AC112: 94.05000046 | AD112: 72 | AE112: 18.60322738 | AF112: -0.1082905369 | AH112: 72 | AI112: 18.28781699 | AJ112: -0.1306227952
AC113: 93.95000008 | AD113: 73 | AE113: 18.60335012 | AF113: -0.1100457239 | AH113: 73 | AI113: 18.28790122 | AJ113: -0.1318274514
AC114: 93.85000018 | AD114: 74 | AE114: 18.60346979 | AF114: -0.111801114 | AH114: 74 | AI114: 18.28798336 | AJ114: -0.1330322469
AC115: 93.75000027 | AD115: 75 | AE115: 18.60358639 | AF115: -0.1135567103 | AH115: 75 | AI115: 18.28806339 | AJ115: -0.134237184
AC116: 93.65000037 | AD116: 76 | AE116: 18.60369994 | AF116: -0.1153125074 | AH116: 76 | AI116: 18.28814132 | AJ116: -0.1354422589
AC117: 93.55000046 | AD117: 77 | AE117: 18.60381042 | AF117: -0.1170685001 | AH117: 77 | AI117: 18.28821715 | AJ117: -0.136647468
AC118: 93.45000008 | AD118: 78 | AE118: 18.60391783 | AF118: -0.1188246912 | AH118: 78 | AI118: 18.28829087 | AJ118: -0.1378528133
AC119: 93.35000018 | AD119: 79 | AE119: 18.60402218 | AF119: -0.1205810588 | AH119: 79 | AI119: 18.28836249 | AJ119: -0.1390582798
AC120: 93.25000027 | AD120: 80 | AE120: 18.60412346 | AF120: -0.1223376058 | AH120: 80 | AI120: 18.288432 | AJ120: -0.1402638693
AC121: 93.14999989 | AD121: 81 | AE121: 18.60422167 | AF121: -0.1240943353 | AH121: 81 | AI121: 18.28849941 | AJ121: -0.1414695842
AC122: 93.05000046 | AD122: 82 | AE122: 18.60431682 | AF122: -0.1258512168 | AH122: 82 | AI122: 18.28856471 | AJ122: -0.1426754033
AC123: 92.95000008 | AD123: 83 | AE123: 18.60440891 | AF123: -0.1276082784 | AH123: 83 | AI123: 18.28862791 | AJ123: -0.1438813461
AC124: 92.85000065 | AD124: 84 | AE124: 18.60449792 | AF124: -0.1293654813 | AH124: 84 | AI124: 18.28868901 | AJ124: -0.1450873858
AC125: 92.75000027 | AD125: 85 | AE125: 18.60458387 | AF125: -0.1311228537 | AH125: 85 | AI125: 18.288748 | AJ125: -0.1462935419
AC126: 92.64999989 | AD126: 86 | AE126: 18.60466676 | AF126: -0.1328803733 | AH126: 86 | AI126: 18.28880489 | AJ126: -0.1474997991
AC127: 92.55000046 | AD127: 87 | AE127: 18.60474657 | AF127: -0.1346380183 | AH127: 87 | AI127: 18.28885967 | AJ127: -0.1487061422
AC128: 92.45000008 | AD128: 88 | AE128: 18.60482332 | AF128: -0.1363958166 | AH128: 88 | AI128: 18.28891234 | AJ128: -0.1499125906
AC129: 92.35000065 | AD129: 89 | AE129: 18.604897 | AF129: -0.1381537294 | AH129: 89 | AI129: 18.28896291 | AJ129: -0.1511191176
AC130: 92.25000027 | AD130: 90 | AE130: 18.60496761 | AF130: -0.1399117848 | AH130: 90 | AI130: 18.28901137 | AJ130: -0.1523257425
AC131: 92.14999989 | AD131: 91 | AE131: 18.60503515 | AF131: -0.1416699609 | AH131: 91 | AI131: 18.28905773 | AJ131: -0.1535324501
AC132: 92.05000046 | AD132: 92 | AE132: 18.60509962 | AF132: -0.1434282354 | AH132: 92 | AI132: 18.28910198 | AJ132: -0.1547392253
AC133: 91.95000008 | AD133: 93 | AE133: 18.60516103 | AF133: -0.1451866365 | AH133: 93 | AI133: 18.28914412 | AJ133: -0.1559460875
AC134: 91.85000065 | AD134: 94 | AE134: 18.60521936 | AF134: -0.1469451253 | AH134: 94 | AI134: 18.28918416 | AJ134: -0.1571530098
AC135: 91.75000027 | AD135: 95 | AE135: 18.60527463 | AF135: -0.14870373 | AH135: 95 | AI135: 18.28922209 | AJ135: -0.1583600117
AC136: 91.64999989 | AD136: 96 | AE136: 18.60532682 | AF136: -0.1504624285 | AH136: 96 | AI136: 18.28925792 | AJ136: -0.1595670779
AC137: 91.55000046 | AD137: 97 | AE137: 18.60537595 | AF137: -0.1522211987 | AH137: 97 | AI137: 18.28929164 | AJ137: -0.1607741933
AC138: 91.45000008 | AD138: 98 | AE138: 18.60542201 | AF138: -0.1539800687 | AH138: 98 | AI138: 18.28932325 | AJ138: -0.1619813773
AC139: 91.35000065 | AD139: 99 | AE139: 18.605465 | AF139: -0.1557389996 | AH139: 99 | AI139: 18.28935275 | AJ139: -0.163188603
AC140: 91.25000027 | AD140: 100 | AE140: 18.60550491 | AF140: -0.1574980197 | AH140: 100 | AI140: 18.28938015 | AJ140: -0.16439589
AC141: 91.14999989 | AD141: 101 | AE141: 18.60554176 | AF141: -0.1592571067 | AH141: 101 | AI141: 18.28940544 | AJ141: -0.1656032229
AC142: 91.05000046 | AD142: 102 | AE142: 18.60557554 | AF142: -0.1610162386 | AH142: 102 | AI142: 18.28942862 | AJ142: -0.1668105866
AC143: 90.95000008 | AD143: 103 | AE143: 18.60560625 | AF143: -0.1627754436 | AH143: 103 | AI143: 18.2894497 | AJ143: -0.1680180004
AC144: 90.85000065 | AD144: 104 | AE144: 18.60563388 | AF144: -0.1645346826 | AH144: 104 | AI144: 18.28946867 | AJ144: -0.1692254377
AC145: 90.75000027 | AD145: 105 | AE145: 18.60565845 | AF145: -0.1662939841 | AH145: 105 | AI145: 18.28948553 | AJ145: -0.1704329177
AC146: 90.64999989 | AD146: 106 | AE146: 18.60567994 | AF146: -0.1680533257 | AH146: 106 | AI146: 18.28950028 | AJ146: -0.1716404253
AC147: 90.55000046 | AD147: 107 | AE147: 18.60569837 | AF147: -0.1698126853 | AH147: 107 | AI147: 18.28951292 | AJ147: -0.1728479454
AC148: 90.45000008 | AD148: 108 | AE148: 18.60571372 | AF148: -0.1715720913 | AH148: 108 | AI148: 18.28952346 | AJ148: -0.1740554972
AC149: 90.35000065 | AD149: 109 | AE149: 18.60572601 | AF149: -0.1733315045 | AH149: 109 | AI149: 18.28953189 | AJ149: -0.175263054
AC150: 90.25000027 | AD150: 110 | AE150: 18.60573522 | AF150: -0.1750909534 | AH150: 110 | AI150: 18.28953822 | AJ150: -0.1764706352
AC151: 90.14999989 | AD151: 111 | AE151: 18.60574136 | AF151: -0.1768504156 | AH151: 111 | AI151: 18.28954243 | AJ151: -0.1776782256
AC152: 90.05000046 | AD152: 112 | AE152: 18.60574443 | AF152: -0.178609869 | AH152: 112 | AI152: 18.28954454 | AJ152: -0.17888581
AC153: 89.95000008 | AD153: 113 | AE153: 18.60574443 | AF153: -0.1803693419 | AH153: 113 | AI153: 18.28954454 | AJ153: -0.1800934077
AC154: 89.85000065 | AD154: 114 | AE154: 18.60574136 | AF154: -0.1821287954 | AH154: 114 | AI154: 18.28954243 | AJ154: -0.1813009921
AC155: 89.75000027 | AD155: 115 | AE155: 18.60573522 | AF155: -0.1838882576 | AH155: 115 | AI155: 18.28953822 | AJ155: -0.1825085825
AC156: 89.64999989 | AD156: 116 | AE156: 18.60572601 | AF156: -0.1856477064 | AH156: 116 | AI156: 18.28953189 | AJ156: -0.1837161637
AC157: 89.55000046 | AD157: 117 | AE157: 18.60571372 | AF157: -0.1874071197 | AH157: 117 | AI157: 18.28952346 | AJ157: -0.1849237205
AC158: 89.45000008 | AD158: 118 | AE158: 18.60569837 | AF158: -0.1891665256 | AH158: 118 | AI158: 18.28951293 | AJ158: -0.1861312723
AC159: 89.35000065 | AD159: 119 | AE159: 18.60567994 | AF159: -0.1909258853 | AH159: 119 | AI159: 18.28950028 | AJ159: -0.1873387923
AC160: 89.25000027 | AD160: 120 | AE160: 18.60565845 | AF160: -0.1926852269 | AH160: 120 | AI160: 18.28948553 | AJ160: -0.1885463
AC161: 89.14999989 | AD161: 121 | AE161: 18.60563388 | AF161: -0.1944445283 | AH161: 121 | AI161: 18.28946867 | AJ161: -0.18975378
AC162: 89.05000046 | AD162: 122 | AE162: 18.60560625 | AF162: -0.1962037674 | AH162: 122 | AI162: 18.2894497 | AJ162: -0.1909612173
AC163: 88.95000008 | AD163: 123 | AE163: 18.60557554 | AF163: -0.1979629724 | AH163: 123 | AI163: 18.28942862 | AJ163: -0.1921686311
AC164: 88.85000065 | AD164: 124 | AE164: 18.60554176 | AF164: -0.1997221043 | AH164: 124 | AI164: 18.28940544 | AJ164: -0.1933759948
AC165: 88.75000027 | AD165: 125 | AE165: 18.60550491 | AF165: -0.2014811913 | AH165: 125 | AI165: 18.28938015 | AJ165: -0.1945833277
AC166: 88.64999989 | AD166: 126 | AE166: 18.605465 | AF166: -0.2032402114 | AH166: 126 | AI166: 18.28935275 | AJ166: -0.1957906147
AC167: 88.55000046 | AD167: 127 | AE167: 18.60542201 | AF167: -0.2049991423 | AH167: 127 | AI167: 18.28932325 | AJ167: -0.1969978404
AC168: 88.45000008 | AD168: 128 | AE168: 18.60537595 | AF168: -0.2067580123 | AH168: 128 | AI168: 18.28929164 | AJ168: -0.1982050244
AC169: 88.35000065 | AD169: 129 | AE169: 18.60532683 | AF169: -0.2085167824 | AH169: 129 | AI169: 18.28925792 | AJ169: -0.1994121398
AC170: 88.25000027 | AD170: 130 | AE170: 18.60527463 | AF170: -0.210275481 | AH170: 130 | AI170: 18.28922209 | AJ170: -0.200619206
AC171: 88.14999989 | AD171: 131 | AE171: 18.60521936 | AF171: -0.2120340857 | AH171: 131 | AI171: 18.28918416 | AJ171: -0.2018262079
AC172: 88.05000046 | AD172: 132 | AE172: 18.60516103 | AF172: -0.2137925745 | AH172: 132 | AI172: 18.28914413 | AJ172: -0.2030331302
AC173: 87.95000008 | AD173: 133 | AE173: 18.60509962 | AF173: -0.2155509756 | AH173: 133 | AI173: 18.28910198 | AJ173: -0.2042399924
AC174: 87.85000065 | AD174: 134 | AE174: 18.60503515 | AF174: -0.2173092501 | AH174: 134 | AI174: 18.28905773 | AJ174: -0.2054467676
AC175: 87.75000027 | AD175: 135 | AE175: 18.60496761 | AF175: -0.2190674261 | AH175: 135 | AI175: 18.28901137 | AJ175: -0.2066534752
AC176: 87.64999989 | AD176: 136 | AE176: 18.604897 | AF176: -0.2208254816 | AH176: 136 | AI176: 18.28896291 | AJ176: -0.2078601001
AC177: 87.55000046 | AD177: 137 | AE177: 18.60482332 | AF177: -0.2225833944 | AH177: 137 | AI177: 18.28891234 | AJ177: -0.2090666271
AC178: 87.45000008 | AD178: 138 | AE178: 18.60474657 | AF178: -0.2243411927 | AH178: 138 | AI178: 18.28885967 | AJ178: -0.2102730755
AC179: 87.35000065 | AD179: 139 | AE179: 18.60466676 | AF179: -0.2260988376 | AH179: 139 | AI179: 18.28880489 | AJ179: -0.2114794186
AC180: 87.25000027 | AD180: 140 | AE180: 18.60458387 | AF180: -0.2278563573 | AH180: 140 | AI180: 18.288748 | AJ180: -0.2126856758
AC181: 87.14999989 | AD181: 141 | AE181: 18.60449792 | AF181: -0.2296137297 | AH181: 141 | AI181: 18.28868901 | AJ181: -0.2138918319
AC182: 87.05000046 | AD182: 142 | AE182: 18.60440891 | AF182: -0.2313709326 | AH182: 142 | AI182: 18.28862792 | AJ182: -0.2150978716
AC183: 86.95000008 | AD183: 143 | AE183: 18.60431682 | AF183: -0.2331279942 | AH183: 143 | AI183: 18.28856471 | AJ183: -0.2163038144
AC184: 86.85000065 | AD184: 144 | AE184: 18.60422168 | AF184: -0.2348848757 | AH184: 144 | AI184: 18.28849941 | AJ184: -0.2175096335
AC185: 86.75000027 | AD185: 145 | AE185: 18.60412346 | AF185: -0.2366416052 | AH185: 145 | AI185: 18.288432 | AJ185: -0.2187153484
AC186: 86.64999989 | AD186: 146 | AE186: 18.60402218 | AF186: -0.2383981606 | AH186: 146 | AI186: 18.28836249 | AJ186: -0.2199209437
AC187: 86.55000046 | AD187: 147 | AE187: 18.60391783 | AF187: -0.2401545198 | AH187: 147 | AI187: 18.28829087 | AJ187: -0.2211264044
AC188: 86.45000008 | AD188: 148 | AE188: 18.60381042 | AF188: -0.241910711 | AH188: 148 | AI188: 18.28821715 | AJ188: -0.2223317497
AC189: 86.35000065 | AD189: 149 | AE189: 18.60369994 | AF189: -0.2436666952 | AH189: 149 | AI189: 18.28814132 | AJ189: -0.2235369531
AC190: 86.25000027 | AD190: 150 | AE190: 18.6035864 | AF190: -0.2454225007 | AH190: 150 | AI190: 18.28806339 | AJ190: -0.2247420337
AC191: 86.14999989 | AD191: 151 | AE191: 18.60346979 | AF191: -0.2471781054 | AH191: 151 | AI191: 18.28798336 | AJ191: -0.2259469766
AC192: 86.05000046 | AD192: 152 | AE192: 18.60335012 | AF192: -0.2489334871 | AH192: 152 | AI192: 18.28790123 | AJ192: -0.2271517664
AC193: 85.95000008 | AD193: 153 | AE193: 18.60322738 | AF193: -0.2506886741 | AH193: 153 | AI193: 18.28781699 | AJ193: -0.2283564225
AC194: 85.85000065 | AD194: 154 | AE194: 18.60310159 | AF194: -0.2524436274 | AH194: 154 | AI194: 18.28773065 | AJ194: -0.2295609182
AC195: 85.75000027 | AD195: 155 | AE195: 18.60297273 | AF195: -0.2541983752 | AH195: 155 | AI195: 18.28764221 | AJ195: -0.230765273
AC196: 85.64999989 | AD196: 156 | AE196: 18.6028408 | AF196: -0.2559528955 | AH196: 156 | AI196: 18.28755166 | AJ196: -0.2319694715
AC197: 85.55000046 | AD197: 157 | AE197: 18.60270582 | AF197: -0.257707166 | AH197: 157 | AI197: 18.28745902 | AJ197: -0.2331734987
AC198: 85.45000008 | AD198: 158 | AE198: 18.60256777 | AF198: -0.2594612151 | AH198: 158 | AI198: 18.28736427 | AJ198: -0.2343773738
AC199: 85.35000065 | AD199: 159 | AE199: 18.60242667 | AF199: -0.2612150038 | AH199: 159 | AI199: 18.28726742 | AJ199: -0.2355810703
AC200: 85.25000027 | AD200: 160 | AE200: 18.6022825 | AF200: -0.2629685603 | AH200: 160 | AI200: 18.28716847 | AJ200: -0.2367846074
AC201: 85.14999989 | AD201: 161 | AE201: 18.60213527 | AF201: -0.2647218625 | AH201: 161 | AI201: 18.28706743 | AJ201: -0.2379879699
AC202: 85.04999951 | AD202: 162 | AE202: 18.60198498 | AF202: -0.2664749051 | AH202: 162 | AI202: 18.28696428 | AJ202: -0.2391911542
AC203: 84.95000103 | AD203: 163 | AE203: 18.60183164 | AF203: -0.2682276493 | AH203: 163 | AI203: 18.28685903 | AJ203: -0.2403941338
AC204: 84.85000065 | AD204: 164 | AE204: 18.60167523 | AF204: -0.2699801566 | AH204: 164 | AI204: 18.28675168 | AJ204: -0.2415969507
AC205: 84.75000027 | AD205: 165 | AE205: 18.60151576 | AF205: -0.2717323882 | AH205: 165 | AI205: 18.28664223 | AJ205: -0.2427995785
AC206: 84.64999989 | AD206: 166 | AE206: 18.60135324 | AF206: -0.2734843389 | AH206: 166 | AI206: 18.28653069 | AJ206: -0.2440020134
AC207: 84.54999951 | AD207: 167 | AE207: 18.60118766 | AF207: -0.2752360032 | AH207: 167 | AI207: 18.28641704 | AJ207: -0.2452042518
AC208: 84.45000103 | AD208: 168 | AE208: 18.60101902 | AF208: -0.2769873424 | AH208: 168 | AI208: 18.2863013 | AJ208: -0.2464062671
AC209: 84.35000065 | AD209: 169 | AE209: 18.60084733 | AF209: -0.2787384181 | AH209: 169 | AI209: 18.28618346 | AJ209: -0.2476081015
AC210: 84.25000027 | AD210: 170 | AE210: 18.60067258 | AF210: -0.2804891914 | AH210: 170 | AI210: 18.28606352 | AJ210: -0.2488097284
AC211: 84.14999989 | AD211: 171 | AE211: 18.60049477 | AF211: -0.2822396571 | AH211: 171 | AI211: 18.28594149 | AJ211: -0.2500111441
AC212: 84.04999951 | AD212: 172 | AE212: 18.60031391 | AF212: -0.2839898098 | AH212: 172 | AI212: 18.28581735 | AJ212: -0.251212345
AC213: 83.95000103 | AD213: 173 | AE213: 18.60013 | AF213: -0.2857396108 | AH213: 173 | AI213: 18.28569113 | AJ213: -0.2524133045
AC214: 83.85000065 | AD214: 174 | AE214: 18.59994303 | AF214: -0.2874891215 | AH214: 174 | AI214: 18.2855628 | AJ214: -0.2536140647
AC215: 83.75000027 | AD215: 175 | AE215: 18.59975301 | AF215: -0.2892383032 | AH215: 175 | AI215: 18.28543238 | AJ215: -0.2548145992
AC216: 83.64999989 | AD216: 176 | AE216: 18.59955994 | AF216: -0.2909871506 | AH216: 176 | AI216: 18.28529987 | AJ216: -0.2560149042
AC217: 83.54999951 | AD217: 177 | AE217: 18.59936381 | AF217: -0.2927356583 | AH217: 177 | AI217: 18.28516526 | AJ217: -0.2572149761
AC218: 83.45000103 | AD218: 178 | AE218: 18.59916464 | AF218: -0.2944837877 | AH218: 178 | AI218: 18.28502856 | AJ218: -0.2584147884
... 272 more rows

Sheet Sheet3

Sheet Sheet2
E2: 平面図（回転角0°) | J2: 断面図
B28: 1.Case1
C29: X軸に平行なA軸を0°～90°まで回転させたときの平面偏角・縦断偏角および合成角は下表のようになる
C31: 45°曲管
C32: A軸回転角 | D32: LX | E32: LY | F32: 平面長L | G32: 点Pの高さ | H32: 平面偏角θ | I32: 縦断偏角β | J32: 合成角
B33: 1 | C33: 0 | D33: 70.711 | E33: 70.711 | F33: 100 | G33: 0 | H33: 45 | I33: =ASIN(G33/100)*180/PI() -> 0
B34: 2 | C34: 5 | D34: 70.711 | E34: =70.711*COS(C34*PI()/180) -> 70.4419233 | F34: =SQRT(100*100-G34*G34) -> 99.80991452 | G34: =70.711*SIN(C34*PI()/180) -> 6.162869725 | H34: =ATAN(E34/D34)*180/PI() -> 44.89077845 | I34: =ASIN(G34/100)*180/PI() -> 3.533303299
B35: 3 | C35: 10 | D35: 70.711 | E35: =70.711*COS(C35*PI()/180) -> 69.63674102 | F35: 99.24328783 | G35: 12.27883629 | H35: =ATAN(E35/D35)*180/PI() -> 44.56145141 | I35: 7.053054399
B36: 4 | C36: 15 | D36: 70.711 | E36: 68.3015811 | F36: 98.31103936 | G36: 18.3013535 | H36: 44.0070272 | I36: 10.54533914
B37: 5 | C37: 20 | D37: 70.711 | E37: 66.44660491 | F37: 97.031468 | G37: 24.18458635 | H37: 43.21917889 | I37: 13.99551037
B38: 6 | C38: 25 | D38: 70.711 | E38: 64.08592993 | F38: 95.43039816 | G38: 29.88375991 | H38: 42.18626118 | I38: 17.38780001
B39: 7 | C39: 30 | D39: 70.711 | E39: 61.23752233 | F39: 93.54137384 | G39: 35.3555 | H39: 40.89339465 | I39: 20.70490963
B40: 8 | C40: 35 | D40: 70.711 | E40: 57.9230602 | F40: 91.40588265 | G40: 40.55816339 | H40: 39.32268991 | I40: 23.92758045
B41: 9 | C41: 40 | D41: 70.711 | E41: 54.16776862 | F41: =SQRT(100*100-G41*G41) -> 89.07357429 | G41: 45.45215467 | H41: 37.45371956 | I41: 27.03415393
B42: 10 | C42: 45 | D42: 70.711 | E42: 50.0002276 | F42: =SQRT(100*100-G42*G42) -> 86.60240897 | G42: =70.711*SIN(C42*PI()/180) -> 50.0002276 | H42: 35.26438968 | I42: 30.00015058
B43: 11 | C43: 50 | D43: 70.711 | E43: 45.45215467 | F43: 84.05862742 | G43: =70.711*SIN(C43*PI()/180) -> 54.16776862 | H43: 32.73240721 | I43: 32.7979194
B44: 12 | C44: 55 | D44: 70.711 | E44: 40.55816339 | F44: 81.51637318 | G44: 57.9230602 | H44: 29.83756648 | I44: 35.39644546
B45: 13 | C45: 60 | D45: 70.711 | E45: 35.3555 | F45: 79.05672558 | G45: 61.23752233 | H45: 26.56505118 | I45: 37.76144593
B46: 14 | C46: 65 | D46: 70.711 | E46: 29.88375991 | F46: 76.76583605 | G46: 64.08592993 | H46: 22.90980713 | I46: 39.85592517
B47: 15 | C47: 70 | D47: 70.711 | E47: 24.18458635 | F47: 74.73184526 | G47: 66.44660491 | H47: 18.88172123 | I47: 41.64137517
B48: 16 | C48: 75 | D48: 70.711 | E48: 18.3013535 | F48: 73.04035884 | G48: 68.3015811 | H48: 14.5108187 | I48: 43.07976103
B49: 17 | C49: 80 | D49: 70.711 | E49: 12.27883629 | F49: 71.76854673 | G49: 69.63674102 | H49: 9.851076117 | I49: 44.13628253
B50: 18 | C50: 85 | D50: 70.711 | E50: 6.162869725 | F50: 70.97841533 | G50: 70.4419233 | H50: 4.981069394 | I50: 44.78264384
B51: 19 | C51: 90 | D51: 70.711 | E51: 4.33157362e-15 | F51: 70.71067812 | G51: 70.71067812 | H51: 3.509791787e-15 | I51: 45
B54: 2.Case2
C55: X軸に平行ないA軸を0°～90°まで回転させたときの平面偏角・縦断偏角および合成角は下表のようになる
L72: Lp=100*sin(θ-θS）+100*cos(θ-θS）*tan(θS)
L74: 72.0959822
C77: A軸の傾きをθSとした時の曲管を回転させる場合を考える。
C79: 45°曲管 | D79: θS= | E79: 11.25 | F79: (deg) | G79: IP点標高= | H79: 10 | I79: (m)
C80: A軸回転角 | D80: LX | E80: LY | G80: 点Pの高さ | H80: 平面偏角θ | I80: 縦断勾配 | J80: 縦断偏角 | K80: H | L80: Lx’ | M80: LY’ | N80: 合成角
B81: 1 | C81: 0 | D81: =100*COS((45-11.25)*PI()/180) -> 83.14696123 | E81: =$L$74*COS(C81*PI()/180) -> 72.0959822 | F81: =E81*COS(11.25*PI()/180) -> 70.71067812 | G81: 10.01653896 | H81: =ATAN(F81/70.710678)*180/PI() -> 45.00000005 | I81: =ATAN(M81/L81)*180/PI() -> 9.519867285 | J81: =11.25-I81 -> 1.730132715 | K81: =$L$74*SIN(C81*PI()/180) -> 0 | L81: =SQRT(0.1*0.1-$M81*$M81) -> 0.09862283121 | M81: =-$H$79+G81 -> 0.016538959
B82: 2 | C82: 5 | D82: =100*COS((45-11.25)*PI()/180) -> 83.14696123 | E82: =$L$74*COS(C82*PI()/180) -> 71.82163522 | F82: =E82*COS(11.25*PI()/180) -> 70.44160264 | G82: =$G$81-72.0959822*SIN(C82*PI()/180)/1000 -> 10.01025538 | H82: =ATAN(F82/70.710678)*180/PI() -> 44.8907785 | I82: =ATAN(M82/L82)*180/PI() -> 5.886248787 | J82: =11.25-I82 -> 5.363751213 | K82: =$L$74*SIN(C82*PI()/180) -> 6.283578878 | L82: =SQRT(0.1*0.1-$M82*$M82) -> 0.09947274591 | M82: =-$H$79+G82 -> 0.01025538012
B83: 3 | C83: 10 | D83: 83.14696123 | E83: 71.00068223 | F83: 69.63642403 | G83: =$G$81-72.0959822*SIN(C83*PI()/180)/1000 -> 10.00401962 | H83: 44.56145146 | I83: 2.303695019 | J83: 8.946304981 | K83: 12.51933593 | L83: 0.09991918049 | M83: 0.004019623074
B84: 4 | C84: 15 | D84: 83.14696123 | E84: 69.63937118 | F84: 68.30127019 | G84: 9.997879146 | H84: 44.00702724 | I84: -1.215251101 | J84: 12.4652511 | K84: 18.65981327 | L84: 0.09997750736 | M84: -0.002120854269
B85: 5 | C85: 20 | D85: 83.14696123 | E85: 67.74806246 | F85: 66.44630244 | G85: 9.991880681 | H85: 43.21917894 | I85: -4.657153716 | J85: 15.90715372 | K85: 24.65827817 | L85: 0.09966983825 | M85: -0.008119319165
B86: 6 | C86: 25 | D86: 83.14696123 | E86: 65.34115008 | F86: 64.0856382 | G86: 9.98606988 | H86: 42.18626123 | I86: -8.007411544 | J86: 19.25741154 | K86: 30.46907868 | L86: 0.09902500576 | M86: -0.01393011968
B87: 7 | C87: 30 | D87: 83.14696123 | E87: 62.4369521 | F87: 61.23724357 | G87: 9.980490968 | H87: 40.8933947 | I87: -11.24999994 | J87: 22.49999994 | K87: 36.0479911 | L87: 0.09807852806 | M87: -0.0195090321
B88: 8 | C88: 35 | D88: 83.14696123 | E88: 59.0575712 | F88: 57.92279653 | G88: 9.975186402 | H88: 39.32268996 | I88: -14.36723619 | J88: 25.61723619 | K88: 41.35255655 | L88: 0.09687252127 | M88: -0.02481359755
B89: 9 | C89: 40 | D89: 83.14696123 | E89: 55.22872654 | F89: 54.16752204 | G89: 9.970196555 | H89: 37.4537196 | I89: -17.33958586 | J89: 28.58958586 | K89: 46.34240407 | L89: 0.09545551143 | M89: -0.02980344507
B90: 10 | C90: 45 | D90: 83.14696123 | E90: 50.97955791 | F90: 50 | G90: 9.965559401 | H90: 35.26438973 | I90: -20.14553936 | J90: 31.39553936 | K90: 50.97955791 | L90: 0.09388208107 | M90: -0.03444059891
B91: 11 | C91: 50 | D91: 83.14696123 | E91: 46.34240407 | F91: 45.45194777 | G91: 9.961310232 | H91: 32.73240725 | I91: -22.7616009 | J91: 34.0116009 | K91: 55.22872654 | L91: 0.09221226539 | M91: -0.03868976754
B92: 12 | C92: 55 | D92: 83.14696123 | E92: 41.35255655 | F92: 40.55797877 | G92: 9.957481388 | H92: 29.83756652 | I92: -25.1624449 | J92: 36.4124449 | K92: 59.0575712 | L92: 0.09051059394 | M92: -0.0425186122
B93: 13 | C93: 60 | D93: 83.14696123 | E93: 36.0479911 | F93: 35.35533906 | G93: 9.954102007 | H93: 26.56505122 | I93: -27.32130388 | J93: 38.57130388 | K93: 62.4369521 | L93: 0.08884466348 | M93: -0.0458979931
B94: 14 | C94: 65 | D94: 83.14696123 | E94: 30.46907868 | F94: 29.88362387 | G94: 9.951197809 | H94: 22.90980716 | I94: -29.21065023 | J94: 40.46065023 | K94: 65.34115008 | L94: 0.08728313781 | M94: -0.04880219108
B95: 15 | C95: 70 | D95: 83.14696123 | E95: 24.65827817 | F95: 24.18447626 | G95: 9.948790897 | H95: 18.88172126 | I95: -30.80321315 | J95: 42.05321315 | K95: 67.74806246 | L95: 0.08589311802 | M95: -0.05120910346
B96: 16 | C96: 75 | D96: 83.14696123 | E96: 18.65981327 | F96: 18.30127019 | G96: 9.946899588 | H96: 14.51081872 | I96: -32.07332443 | J96: 43.32332443 | K96: 69.63937118 | L96: 0.08473692363 | M96: -0.05310041218
B97: 17 | C97: 80 | D97: 83.14696123 | E97: 12.51933593 | F97: 12.2787804 | G97: 9.945538277 | H97: 9.851076133 | I97: -32.99851051 | J97: 44.24851051 | K97: 71.00068223 | L97: 0.08386847264 | M97: -0.05446172323
B98: 18 | C98: 85 | D98: 83.14696123 | E98: 6.283578878 | F98: 6.162841672 | G98: 9.944717324 | H98: 4.981069402 | I98: -33.56115764 | J98: 44.81115764 | K98: 71.82163522 | L98: 0.08332962084 | M98: -0.05528267622
B99: 19 | C99: 90 | D99: 83.14696123 | E99: 4.41641406e-15 | F99: 4.331553902e-15 | G99: =$H$79-100*SIN((45-$E$79)*PI()/180)/1000 -> 9.944442977 | H99: 3.509791793e-15 | I99: -33.75 | J99: 45 | K99: 72.0959822 | L99: 0.08314696123 | M99: -0.0555570233
G102: 9.944442977
F105: 1 | G105: 10.01653896
F106: 2 | G106: 10.01025538
F107: 3 | G107: 10.00401962
F108: 4 | G108: 9.997879146
F109: 5 | G109: 9.991880681
F110: 6 | G110: 9.98606988
F111: 7 | G111: 9.980490968
F112: 8 | G112: 9.975186402
F113: 9 | G113: 9.970196555
F114: 10 | G114: 9.965559401
F115: 11 | G115: 9.961310232
F116: 12 | G116: 9.957481388
F117: 13 | G117: 9.954102007
F118: 14 | G118: 9.951197809
F119: 15 | G119: 9.948790897
F120: 16 | G120: 9.946899588
F121: 17 | G121: 9.945538277
F122: 18 | G122: 9.944717324
F123: 19 | G123: 9.944442977
